Workbook

Sheet Alle tillæg
A1: Selskab | B1: Forsyningsart | C1: FS ID | D1: Beskrivelse | E1: Driftsomkostninger | F1: Anlægsomkostninger | G1: Engangstillæg | H1: Type: §11 Stk. 1 (mål), §11, Stk. 2 (ledningsomlægning), §11, stk. 4 (udvidelse), §11 stk. 5 (medfinansiering), §11, stk. 6 (sup. Investering), §11, stk. 9 (vejbidrag), §13, stk. 2 (periodevise), §31, stk. 7 (vandindvinding) | I1: Godkendt/afvist | J1: Grund til godkendelse/ afvisning
A2: aabybro vand amba | B2: Drikkevand | C2: v217 | D2: Anlægsprojekter igangsat senest 1. marts 2016 | E2: 0 | F2: 0 | H2: 1. Marts 2016
A3: aalborg kloak as | B3: Spildevand | C3: s109 | D3: Anlægsprojekter igangsat senest 1. marts 2016 | E3: 0 | F3: 2632135.725 | H3: 1. Marts 2016
A4: afloeb ballerup as | B4: Spildevand | C4: s001 | D4: Garantiprovision | E4: 0 | F4: 80549 | G4: 402745 | H4: §11 Stk. 1 (mål) | I4: Godkendt | J4: Der er tale om statsligt eller kommunalt fastsatmål, som overstiger væsentlighedsgrænsen og ligger uden for den ordinære driftsaktivitet.
A5: aalborg vand as | B5: Drikkevand | C5: v218 | D5: Anlægsprojekter igangsat senest 1. marts 2016 | E5: 0 | F5: 0 | H5: 1. Marts 2016
A6: aalestrup vand amba | B6: Drikkevand | C6: v219 | D6: Anlægsprojekter igangsat senest 1. marts 2016 | E6: 0 | F6: 0 | H6: 1. Marts 2016
A7: aarhus vand as | B7: Spildevand | C7: s110 | D7: Anlægsprojekter igangsat senest 1. marts 2016 | E7: 0 | F7: 0 | H7: 1. Marts 2016
A8: afloeb ballerup as | B8: Spildevand | C8: s001 | D8: Brønde, stik og ledninger | E8: 38680 | F8: 23550 | H8: §11, stk. 4 (udvidelse) | I8: Godkendt | J8: Godtgjort at deres forsyningsområde eller vandmængder er udvidet, som følge af udvidelse af forsyningsområde eller håndterede vandmængder
A9: alleroed spildevand as | B9: Spildevand | C9: s002 | D9: Garantiprovision | E9: 0 | F9: 820962 | G9: 4925772 | H9: §11 Stk. 1 (mål) | I9: Godkendt | J9: Der er tale om statsligt eller kommunalt fastsatmål, som overstiger væsentlighedsgrænsen og ligger uden for den ordinære driftsaktivitet.
A10: alleroed spildevand as | B10: Spildevand | C10: s002 | D10: Flytning af forsyningsledninger | E10: 0 | F10: 54301 | H10: §11, Stk. 2 (ledningsomlægning) | I10: Godkendt | J10: Flytningen af jeres forsynings ledninger er en følge af arealejers retmæssige råderet over arealet, og at jeres anlægsomkostninger har været nødvendige i forbindelse med flytningen.
A11: alleroed spildevand as | B11: Spildevand | C11: s002 | D11: Udvidelse af forsyningsområdet | E11: 255895 | F11: 30053 | H11: §11, stk. 4 (udvidelse) | I11: Godkendt | J11: Godtgjort at deres forsyningsområde eller vandmængder er udvidet, som følge af udvidelse af forsyningsområde eller håndterede vandmængder
A12: andelsselskabet bredebro vandvaerk | B12: Spildevand | D12: udskiftning af filtre | H12: §13, stk. 2 (periodevise) | I12: Afvist | J12: Det er vores vurdering, at der er tale om almindelig ved ligeholdelse af filtre, der ikke kan sidestilles med oprensninger af slam eller regnvandsbede.
A13: andelsselskabet stenloese vandvaerk | B13: Drikkevand | C13: v008 | D13: Udvidelse med seks forsyningsområder | E13: 0 | F13: 6437 | H13: §11, stk. 4 (udvidelse) | I13: Godkendt | J13: Opfylder betingerne for tillæg.
A14: andelsselskabet strandhuse nr bjert vandvaerk | B14: Drikkevand | C14: v009 | D14: Nyt vej-T i Nr. Bjert | E14: 0 | F14: 4482 | H14: §11 Stk. 1 (mål) | I14: Godkendt | J14: Der er tale om statsligt eller kommunalt fastsatmål, som overstiger væsentlighedsgrænsen og ligger uden for den ordinære driftsaktivitet.
A15: arwos spildevand as | B15: Spildevand | D15: Separering | H15: §11 Stk. 1 (mål) | I15: Afvist | J15: Væsentlighedhedsgrænsen er ikke opfyldt.
A16: arwos spildevand as | B16: Spildevand | C16: s004 | D16: Fladhøjparken & Hærvejsskolen | E16: 0 | F16: 5230 | H16: §11, Stk. 2 (ledningsomlægning) | I16: Godkendt | J16: Flytningen af jeres forsynings ledninger er en følge af arealejers retmæssige råderet over arealet, og at jeres anlægsomkostninger har været nødvendige i forbindelse med flytningen.
A17: aarhus vand as | B17: Drikkevand | C17: v220 | D17: Anlægsprojekter igangsat senest 1. marts 2016 | E17: 0 | F17: 0 | H17: 1. Marts 2016
A18: arwos spildevand as | B18: Spildevand | C18: s004 | D18: Udvidelse af forsyningsområdet | E18: 0 | F18: 259880 | G18: 67359 | H18: §11, stk. 4 (udvidelse) | I18: Godkendt | J18: Godtgjort at deres forsyningsområde eller vandmængder er udvidet, som følge af udvidelse af forsyningsområde eller håndterede vandmængder
A19: arwos vand as | B19: Drikkevand | C19: v015 | D19: Byggemodninger og nye tilslutninger | E19: 0 | F19: 90801 | G19: 114056 | H19: §11, stk. 4 (udvidelse) | I19: Godkendt | J19: Godtgjort at deres forsyningsområde eller vandmængder er udvidet, som følge af udvidelse af forsyningsområde eller håndterede vandmængder
A20: billund drikkevand as | B20: Drikkevand | C20: v020 | D20: Byggemodninger | E20: 19063 | F20: 17628 | H20: §11, stk. 4 (udvidelse) | I20: Godkendt | J20: Godtgjort at deres forsyningsområde eller vandmængder er udvidet, som følge af udvidelse af forsyningsområde eller håndterede vandmængder
A21: billund spildevand as | B21: Spildevand | C21: s007 | D21: Flytning af ledninger ved Lego House | E21: 0 | F21: 5190 | H21: §11, Stk. 2 (ledningsomlægning) | I21: Godkendt | J21: Flytningen af jeres forsynings ledninger er en følge af arealejers retmæssige råderet over arealet, og at jeres anlægsomkostninger har været nødvendige i forbindelse med flytningen.
A22: billund spildevand as | B22: Spildevand | C22: s007 | D22: Byggemodninger | E22: 9328 | F22: 142242 | H22: §11, stk. 4 (udvidelse) | I22: Godkendt | J22: Godtgjort at deres forsyningsområde eller vandmængder er udvidet, som følge af udvidelse af forsyningsområde eller håndterede vandmængder
A23: aars vand | B23: Drikkevand | C23: v221 | D23: Anlægsprojekter igangsat senest 1. marts 2016 | E23: 0 | F23: 0 | H23: 1. Marts 2016
A24: aeroe vand as s108 (1) | B24: Drikkevand | C24: -oer | D24: Anlægsprojekter igangsat senest 1. marts 2016 | E24: 0 | F24: 0 | H24: 1. Marts 2016
A25: aeroe vand as | B25: Spildevand | C25: s108 | D25: Anlægsprojekter igangsat senest 1. marts 2016 | E25: 0 | F25: 0 | H25: 1. Marts 2016
A26: afloeb ballerup as | B26: Spildevand | C26: s001 | D26: Anlægsprojekter igangsat senest 1. marts 2016 | E26: 0 | F26: 813910.7204 | H26: 1. Marts 2016
A27: biofos spildevandscenter avedoere as | B27: Spildevand | C27: s009 | D27: Påbud om adskillelse af restprodukter | E27: 0 | F27: 49233 | G27: 484228 | H27: §11 Stk. 1 (mål) | I27: Godkendt | J27: Der er tale om statsligt eller kommunalt fastsatmål, som overstiger væsentlighedsgrænsen og ligger uden for den ordinære driftsaktivitet.
A28: bluekolding spildevand as | B28: Spildevand | C28: s058 | D28: Flytning af ledninger ved Gl. Strandvej | E28: 0 | F28: 18238 | H28: §11, Stk. 2 (ledningsomlægning) | I28: Godkendt | J28: Flytningen af jeres forsynings ledninger er en følge af arealejers retmæssige råderet over arealet, og at jeres anlægsomkostninger har været nødvendige i forbindelse med flytningen.
A29: alleroed spildevand as | B29: Spildevand | C29: s002 | D29: Anlægsprojekter igangsat senest 1. marts 2016 | E29: 0 | F29: 501623.6733 | H29: 1. Marts 2016
A30: bornholms spildevand as | B30: Spildevand | C30: s010 | D30: Nye tilslutninger | E30: 0 | F30: 58981 | H30: §11, stk. 4 (udvidelse) | I30: Godkendt | J30: Godtgjort at deres forsyningsområde eller vandmængder er udvidet, som følge af udvidelse af forsyningsområde eller håndterede vandmængder
A31: broager vandvaerk amba | B31: Drikkevand | C31: v033 | D31: Vandsamarbejde - grundvandsbeskyttelse | E31: 92804 | F31: 0 | H31: §11 Stk. 1 (mål) | I31: Godkendt | J31: Der er tale om statsligt eller kommunalt fastsatmål, som overstiger væsentlighedsgrænsen og ligger uden for den ordinære driftsaktivitet.
A32: din forsyning spildevand as | B32: Spildevand | C32: s015 | D32: Byggemodninger og nye tilslutninger | E32: 118443 | F32: 1030155.8 | G32: 42975.6 | H32: §11, stk. 4 (udvidelse) | I32: Godkendt | J32: Godtgjort at deres forsyningsområde eller vandmængder er udvidet, som følge af udvidelse af forsyningsområde eller håndterede vandmængder
A33: almtoft kjellerup vandvaerk amba | B33: Drikkevand | C33: v104 | D33: Anlægsprojekter igangsat senest 1. marts 2016 | E33: 0 | F33: 0 | H33: 1. Marts 2016
A34: andelsselskabet bredebro vandvaerk | B34: Drikkevand | C34: v032 | D34: Anlægsprojekter igangsat senest 1. marts 2016 | E34: 0 | F34: 0 | H34: 1. Marts 2016
A35: andelsselskabet ejby vandvaerk | B35: Drikkevand | C35: v001 | D35: Anlægsprojekter igangsat senest 1. marts 2016 | E35: 0 | F35: 0 | H35: 1. Marts 2016
A36: andelsselskabet goerlev vandforsyning | B36: Drikkevand | C36: v003 | D36: Anlægsprojekter igangsat senest 1. marts 2016 | E36: 0 | F36: 0 | H36: 1. Marts 2016
A37: andelsselskabet haarby vandvaerk | B37: Drikkevand | C37: v103 | D37: Anlægsprojekter igangsat senest 1. marts 2016 | E37: 0 | F37: 0 | H37: 1. Marts 2016
A38: andelsselskabet oerbaek vandvaerk | B38: Drikkevand | C38: v012 | D38: Anlægsprojekter igangsat senest 1. marts 2016 | E38: 0 | F38: 0 | H38: 1. Marts 2016
A39: andelsselskabet stenloese vandvaerk | B39: Drikkevand | C39: v008 | D39: Anlægsprojekter igangsat senest 1. marts 2016 | E39: 0 | F39: 0 | H39: 1. Marts 2016
A40: din forsyning spildevand as | B40: Spildevand | C40: s015 | D40: Glycom | E40: 3720226 | F40: 0 | H40: §11, stk. 4 (udvidelse) | I40: Godkendt | J40: Godtgjort at deres forsyningsområde eller vandmængder er udvidet, som følge af udvidelse af forsyningsområde eller håndterede vandmængder
A41: din forsyning spildevand as | B41: Spildevand | C41: s015 | D41: Oprensning af regnvandsbassiner | E41: 123195 | F41: 0 | G41: 1231953 | H41: §13, stk. 2 (periodevise) | I41: Godkendt | J41: Opfylder betingerne for tillæg.
A42: andelsselskabet strandhuse nr bjert vandvaerk | B42: Drikkevand | C42: v009 | D42: Anlægsprojekter igangsat senest 1. marts 2016 | E42: 0 | F42: 0 | H42: 1. Marts 2016
A43: andelsselskabet vejgaard vandvaerk | B43: Drikkevand | C43: v010 | D43: Anlægsprojekter igangsat senest 1. marts 2016 | E43: 0 | F43: 0 | H43: 1. Marts 2016
A44: andelsselskabet vraa vandvaerk | B44: Drikkevand | C44: v011 | D44: Anlægsprojekter igangsat senest 1. marts 2016 | E44: 0 | F44: 0 | H44: 1. Marts 2016
A45: andelsvandvaerket helle vest amba | B45: Drikkevand | C45: v013 | D45: Anlægsprojekter igangsat senest 1. marts 2016 | E45: 0 | F45: 0 | H45: 1. Marts 2016
A46: aquadjurs as | B46: Spildevand | C46: s003 | D46: Anlægsprojekter igangsat senest 1. marts 2016 | E46: 0 | F46: 124896.824 | H46: 1. Marts 2016
A47: aquadjurs as | B47: Drikkevand | C47: v014 | D47: Anlægsprojekter igangsat senest 1. marts 2016 | E47: 0 | F47: 0 | H47: 1. Marts 2016
A48: arwos spildevand as | B48: Spildevand | C48: s004 | D48: Anlægsprojekter igangsat senest 1. marts 2016 | E48: 0 | F48: 0 | H48: 1. Marts 2016
A49: din forsyning vand as | B49: Drikkevand | C49: v044 | D49: Flytning af ledninger | E49: 0 | F49: 44994 | H49: §11, Stk. 2 (ledningsomlægning) | I49: Godkendt | J49: Flytningen af jeres forsynings ledninger er en følge af arealejers retmæssige råderet over arealet, og at jeres anlægsomkostninger har været nødvendige i forbindelse med flytningen.
A50: din forsyning vand as | B50: Drikkevand | C50: v044 | D50: Byggemodninger og nye tilslutninger | E50: 206794 | F50: 239883 | H50: §11, stk. 4 (udvidelse) | I50: Godkendt | J50: Godtgjort at deres forsyningsområde eller vandmængder er udvidet, som følge af udvidelse af forsyningsområde eller håndterede vandmængder
A51: arwos vand as | B51: Drikkevand | C51: v015 | D51: Anlægsprojekter igangsat senest 1. marts 2016 | E51: 0 | F51: 0 | H51: 1. Marts 2016
A52: egedal spildevand as | B52: Spildevand | C52: s013 | D52: Etablering af nye stik i 2017 og 2018 | E52: 209943 | F52: 65486 | H52: §11, stk. 4 (udvidelse) | I52: Godkendt | J52: Godtgjort at deres forsyningsområde eller vandmængder er udvidet, som følge af udvidelse af forsyningsområde eller håndterede vandmængder
A53: asnaes vandvaerk amba | B53: Drikkevand | C53: v016 | D53: Anlægsprojekter igangsat senest 1. marts 2016 | E53: 0 | F53: 0 | H53: 1. Marts 2016
A54: assens rensning as | B54: Spildevand | C54: s005 | D54: Anlægsprojekter igangsat senest 1. marts 2016 | E54: 0 | F54: 0 | H54: 1. Marts 2016
A55: assens spildevand as | B55: Spildevand | C55: s006 | D55: Anlægsprojekter igangsat senest 1. marts 2016 | E55: 0 | F55: 1732104.44 | H55: 1. Marts 2016
A56: assens vandvaerk as | B56: Drikkevand | C56: v017 | D56: Anlægsprojekter igangsat senest 1. marts 2016 | E56: 0 | F56: 172915.6608 | H56: 1. Marts 2016
A57: aulum vandvaerk amba | B57: Drikkevand | C57: v018 | D57: Anlægsprojekter igangsat senest 1. marts 2016 | E57: 0 | F57: 0 | H57: 1. Marts 2016
A58: baunehoej vandvaerk amba | B58: Drikkevand | C58: v019 | D58: Anlægsprojekter igangsat senest 1. marts 2016 | E58: 0 | F58: 0 | H58: 1. Marts 2016
A59: billund drikkevand as | B59: Drikkevand | C59: v020 | D59: Anlægsprojekter igangsat senest 1. marts 2016 | E59: 0 | F59: 0 | H59: 1. Marts 2016
A60: energi viborg vand as | B60: Spildevand | C60: s014 | D60: Separering | E60: 36584 | F60: 549834 | H60: §11 Stk. 1 (mål) | I60: Godkendt | J60: Der er tale om statsligt eller kommunalt fastsatmål, som overstiger væsentlighedsgrænsen og ligger uden for den ordinære driftsaktivitet.
A61: billund spildevand as | B61: Spildevand | C61: s007 | D61: Anlægsprojekter igangsat senest 1. marts 2016 | E61: 0 | F61: 0 | H61: 1. Marts 2016
A62: energi viborg vand as | B62: Spildevand | C62: s014 | D62: Byggemodninger | E62: 37346 | F62: 194231 | H62: §11, stk. 4 (udvidelse) | I62: Godkendt | J62: Godtgjort at deres forsyningsområde eller vandmængder er udvidet, som følge af udvidelse af forsyningsområde eller håndterede vandmængder
A63: energi viborg vand as | B63: Spildevand | C63: s014 | D63: Tømning af slambede | F63: 0 | G63: 8303603 | H63: §13, stk. 2 (periodevise) | I63: Godkendt | J63: Opfylder betingerne for tillæg.
A64: biofos lynettefaellesskabet as | B64: Spildevand | C64: s008 | D64: Anlægsprojekter igangsat senest 1. marts 2016 | E64: 0 | F64: 7063701.02 | H64: 1. Marts 2016
A65: biofos spildevandscenter avedoere as | B65: Spildevand | C65: s009 | D65: Anlægsprojekter igangsat senest 1. marts 2016 | E65: 0 | F65: 51058.7362 | H65: 1. Marts 2016
A66: fanoe vand as | B66: Spildevand | C66: s016 | D66: Nye tilslutninger | E66: 28908 | F66: 52701 | H66: §11, stk. 4 (udvidelse) | I66: Godkendt | J66: Godtgjort at deres forsyningsområde eller vandmængder er udvidet, som følge af udvidelse af forsyningsområde eller håndterede vandmængder
A67: birkeroed vandforsyning amba | B67: Drikkevand | C67: v021 | D67: Anlægsprojekter igangsat senest 1. marts 2016 | E67: 122918 | F67: 109905.4 | H67: 1. Marts 2016
A68: bjerringbro faellesvandvaerk amba | B68: Drikkevand | C68: v022 | D68: Anlægsprojekter igangsat senest 1. marts 2016 | E68: 0 | F68: 0 | H68: 1. Marts 2016
A69: bjoevlund vandvaerk is | B69: Drikkevand | C69: v023 | D69: Anlægsprojekter igangsat senest 1. marts 2016 | E69: 0 | F69: 0 | H69: 1. Marts 2016
A70: bluekolding spildevand as | B70: Spildevand | C70: s058 | D70: Anlægsprojekter igangsat senest 1. marts 2016 | E70: 0 | F70: 0 | H70: 1. Marts 2016
A71: fanoe vand as | B71: Drikkevand | C71: v045 | D71: Nye tilslutninger | E71: 30964 | F71: 16487 | H71: §11, stk. 4 (udvidelse) | I71: Godkendt | J71: Godtgjort at deres forsyningsområde eller vandmængder er udvidet, som følge af udvidelse af forsyningsområde eller håndterede vandmængder
A72: bluekolding vand as | B72: Drikkevand | C72: v038 | D72: Anlægsprojekter igangsat senest 1. marts 2016 | E72: 0 | F72: 0 | H72: 1. Marts 2016
A73: boerkop vandvaerk amba | B73: Drikkevand | C73: v037 | D73: Anlægsprojekter igangsat senest 1. marts 2016 | E73: 0 | F73: 0 | H73: 1. Marts 2016
A74: bogense forsyningsselskab | B74: Drikkevand | C74: v024 | D74: Anlægsprojekter igangsat senest 1. marts 2016 | E74: 0 | F74: 0 | H74: 1. Marts 2016
A75: bolderslev vandvaerk | B75: Drikkevand | C75: v025 | D75: Anlægsprojekter igangsat senest 1. marts 2016 | E75: 0 | F75: 0 | H75: 1. Marts 2016
A76: bording vandvaerk amba | B76: Drikkevand | C76: v026 | D76: Anlægsprojekter igangsat senest 1. marts 2016 | E76: 0 | F76: 0 | H76: 1. Marts 2016
A77: bornholms spildevand as | B77: Spildevand | C77: s010 | D77: Anlægsprojekter igangsat senest 1. marts 2016 | E77: 0 | F77: 0 | H77: 1. Marts 2016
A78: faxe spildevand as | B78: Spildevand | C78: s018 | D78: Byggemodninger og nye tilslutninger | E78: 97310 | F78: 240779 | H78: §11, stk. 4 (udvidelse) | I78: Godkendt | J78: Godtgjort at deres forsyningsområde eller vandmængder er udvidet, som følge af udvidelse af forsyningsområde eller håndterede vandmængder
A79: bornholms vand as | B79: Drikkevand | C79: v027 | D79: Anlægsprojekter igangsat senest 1. marts 2016 | E79: 0 | F79: 0 | H79: 1. Marts 2016
A80: borup vandvaerk | B80: Drikkevand | C80: v028 | D80: Anlægsprojekter igangsat senest 1. marts 2016 | E80: 0 | F80: 0 | H80: 1. Marts 2016
A81: braedstrup vandvaerk amba | B81: Drikkevand | C81: v034 | D81: Anlægsprojekter igangsat senest 1. marts 2016 | E81: 0 | F81: 0 | H81: 1. Marts 2016
A82: bramdrupdam vandvaerk amba | B82: Drikkevand | C82: v029 | D82: Anlægsprojekter igangsat senest 1. marts 2016 | E82: 0 | F82: 0 | H82: 1. Marts 2016
A83: brande vandvaerk amba | B83: Drikkevand | C83: v030 | D83: Anlægsprojekter igangsat senest 1. marts 2016 | E83: 0 | F83: 0 | H83: 1. Marts 2016
A84: branderup vandvaerk | B84: Drikkevand | C84: v031 | D84: Anlægsprojekter igangsat senest 1. marts 2016 | E84: 0 | F84: 0 | H84: 1. Marts 2016
A85: broager vandvaerk amba | B85: Drikkevand | C85: v033 | D85: Anlægsprojekter igangsat senest 1. marts 2016 | E85: 0 | F85: 0 | H85: 1. Marts 2016
A86: faxe vandforsyning as | B86: Drikkevand | C86: v047 | D86: Forøgelse af salg til storkunde | E86: 553030 | F86: 0 | H86: §11, stk. 4 (udvidelse) | I86: Godkendt | J86: Godtgjort at deres forsyningsområde eller vandmængder er udvidet, som følge af udvidelse af forsyningsområde eller håndterede vandmængder
A87: broenderslev spildevand as | B87: Spildevand | C87: s012 | D87: Anlægsprojekter igangsat senest 1. marts 2016 | E87: 0 | F87: 0 | H87: 1. Marts 2016
A88: broenderslev vand as | B88: Drikkevand | C88: v035 | D88: Anlægsprojekter igangsat senest 1. marts 2016 | E88: 0 | F88: 0 | H88: 1. Marts 2016
A89: broerup vandvaerk amba | B89: Drikkevand | C89: v036 | D89: Anlægsprojekter igangsat senest 1. marts 2016 | E89: 0 | F89: 0 | H89: 1. Marts 2016
A90: dianalund vandvaerk | B90: Drikkevand | C90: v039 | D90: Anlægsprojekter igangsat senest 1. marts 2016 | E90: 0 | F90: 0 | H90: 1. Marts 2016
A91: din forsyning spildevand as | B91: Spildevand | C91: s015 | D91: Anlægsprojekter igangsat senest 1. marts 2016 | E91: 106531 | F91: 1785110.853 | G91: 65823 | H91: 1. Marts 2016
A92: faxe vandforsyning as | B92: Drikkevand | C92: v047 | D92: Nye forsyningsområder | E92: 479394 | F92: 82039 | H92: §11, stk. 4 (udvidelse) | I92: Godkendt | J92: Godtgjort at deres forsyningsområde eller vandmængder er udvidet, som følge af udvidelse af forsyningsområde eller håndterede vandmængder
A93: ffv spildevand as | B93: Spildevand | C93: s020 | D93: Byggemodninger og overtagelse af regnvandshåndtering | E93: 0 | F93: 42610 | H93: §11, stk. 4 (udvidelse) | I93: Godkendt | J93: Godtgjort at deres forsyningsområde eller vandmængder er udvidet, som følge af udvidelse af forsyningsområde eller håndterede vandmængder
A94: fors spildevand holbaek as | B94: Spildevand | C94: s047 | D94: Byggemodninger | E94: 0 | F94: 81607 | H94: §11, stk. 4 (udvidelse) | I94: Godkendt | J94: Godtgjort at deres forsyningsområde eller vandmængder er udvidet, som følge af udvidelse af forsyningsområde eller håndterede vandmængder
A95: fors spildevand roskilde as | B95: Spildevand | C95: s080 | D95: Milen | E95: 0 | F95: 1585723 | H95: §11 Stk. 1 (mål) | I95: Godkendt | J95: Der er tale om statsligt eller kommunalt fastsatmål, som overstiger væsentlighedsgrænsen og ligger uden for den ordinære driftsaktivitet.
A96: forsyning helsingoer spildevand as | B96: Spildevand | C96: s021 | D96: Flytning af ledninger i 2018 | E96: 0 | F96: 166307 | H96: §11, Stk. 2 (ledningsomlægning) | I96: Godkendt | J96: Flytningen af jeres forsynings ledninger er en følge af arealejers retmæssige råderet over arealet, og at jeres anlægsomkostninger har været nødvendige i forbindelse med flytningen.
A97: din forsyning vand as | B97: Drikkevand | C97: v044 | D97: Anlægsprojekter igangsat senest 1. marts 2016 | E97: 83149 | F97: 1626383.646 | H97: 1. Marts 2016
A98: fredericia spildevand og energi as | B98: Spildevand | C98: s023 | D98: Bystrategiprojekt | E98: 1391516 | F98: 0 | H98: §11 Stk. 1 (mål) | I98: Godkendt | J98: Der er tale om statsligt eller kommunalt fastsatmål, som overstiger væsentlighedsgrænsen og ligger uden for den ordinære driftsaktivitet.
A99: fredericia spildevand og energi as | B99: Spildevand | C99: s023 | D99: Udvidelse af forsyningsområdet | E99: 121077 | F99: 16025 | H99: §11, stk. 4 (udvidelse) | I99: Godkendt | J99: Godtgjort at deres forsyningsområde eller vandmængder er udvidet, som følge af udvidelse af forsyningsområde eller håndterede vandmængder
A100: dronninglund vandvaerk amba | B100: Drikkevand | C100: v040 | D100: Anlægsprojekter igangsat senest 1. marts 2016 | E100: 0 | F100: 0 | H100: 1. Marts 2016
A101: egaa vandvaerk amba | B101: Drikkevand | C101: v042 | D101: Anlægsprojekter igangsat senest 1. marts 2016 | E101: 0 | F101: 0 | H101: 1. Marts 2016
A102: egedal spildevand as | B102: Spildevand | C102: s013 | D102: Anlægsprojekter igangsat senest 1. marts 2016 | E102: 0 | F102: 307844.3333 | H102: 1. Marts 2016
A103: frederiksberg kloak as | B103: Spildevand | C103: s024 | D103: 2-partssekretariat | E103: 1834920 | F103: 0 | H103: §11 Stk. 1 (mål) | I103: Godkendt | J103: Der er tale om statsligt eller kommunalt fastsatmål, som overstiger væsentlighedsgrænsen og ligger uden for den ordinære driftsaktivitet.
A104: egedal vandforsyning as | B104: Drikkevand | C104: v041 | D104: Anlægsprojekter igangsat senest 1. marts 2016 | E104: 0 | F104: 15439.3 | H104: 1. Marts 2016
A105: energi viborg vand as | B105: Spildevand | C105: s014 | D105: Anlægsprojekter igangsat senest 1. marts 2016 | E105: 0 | F105: 200782.7667 | H105: 1. Marts 2016
A106: frederiksberg vand as | B106: Drikkevand | D106: GDPR | H106: §11 Stk. 1 (mål) | I106: Afvist | J106: Der er således tale om et databeskyttelsesformål, hvilket ikke kan ligestilles et mål inden for miljø, sundhed, energieffektivitet, klimaindsatser, forsyningssikkerhed eller service.
A107: frederiksberg vand as | B107: Drikkevand | C107: v055 | D107: ISO certificering | F107: 0 | G107: 1636896 | H107: §11 Stk. 1 (mål) | I107: Godkendt | J107: Der er tale om statsligt eller kommunalt fastsatmål, som overstiger væsentlighedsgrænsen og ligger uden for den ordinære driftsaktivitet.
A108: frederikshavn vand as | B108: Drikkevand | C108: v057 | D108: Fjernaflæste målere | E108: 1221126 | F108: 226714 | H108: §11 Stk. 1 (mål) | I108: Godkendt | J108: Der er tale om statsligt eller kommunalt fastsatmål, som overstiger væsentlighedsgrænsen og ligger uden for den ordinære driftsaktivitet.
A109: energi viborg vand as | B109: Drikkevand | C109: v043 | D109: Anlægsprojekter igangsat senest 1. marts 2016 | E109: 0 | F109: 22047.03333 | H109: 1. Marts 2016
A110: fanoe vand as | B110: Spildevand | C110: s016 | D110: Anlægsprojekter igangsat senest 1. marts 2016 | E110: 0 | F110: 0 | H110: 1. Marts 2016
A111: frederikshavn vand as | B111: Drikkevand | C111: v057 | D111: Byggemodninger | E111: 27215 | F111: 24551 | H111: §11, stk. 4 (udvidelse) | I111: Godkendt | J111: Godtgjort at deres forsyningsområde eller vandmængder er udvidet, som følge af udvidelse af forsyningsområde eller håndterede vandmængder
A112: fanoe vand as | B112: Drikkevand | C112: v045 | D112: Anlægsprojekter igangsat senest 1. marts 2016 | E112: 0 | F112: 0 | H112: 1. Marts 2016
A113: frederikshavn vand as | B113: Drikkevand | C113: v057 | D113: Overtagelse af Voerså Vandværk | E113: 150525 | F113: 102754 | G113: 86741 | H113: §11, stk. 4 (udvidelse) | I113: Godkendt | J113: Godtgjort at deres forsyningsområde eller vandmængder er udvidet, som følge af udvidelse af forsyningsområde eller håndterede vandmængder
A114: farsoe vandvaerk is | B114: Drikkevand | C114: v046 | D114: Anlægsprojekter igangsat senest 1. marts 2016 | E114: 0 | F114: 0 | H114: 1. Marts 2016
A115: favrskov spildevand as | B115: Spildevand | C115: s017 | D115: Anlægsprojekter igangsat senest 1. marts 2016 | E115: 0 | F115: 0 | H115: 1. Marts 2016
A116: faxe spildevand as | B116: Spildevand | C116: s018 | D116: Anlægsprojekter igangsat senest 1. marts 2016 | E116: 0 | F116: 539591.0431 | H116: 1. Marts 2016
A117: frederikshavn vand as | B117: Drikkevand | C117: v057 | D117: Fornyelse af indvindingstilladelser | E117: 21150 | F117: 0 | G117: 634514 | H117: §13, stk. 2 (periodevise) | I117: Godkendt | J117: Opfylder betingerne for tillæg.
A118: faxe spildevandscenter as s019 kopi | B118: Spildevand | D118: Slamafvanding på Haslev Renseanlæg | H118: § 14 (Justering af den økonomiske ramme) | I118: Afvist | J118: Opfylder ikke krav for tillæg.
A119: faxe spildevandscenter as s019 kopi | B119: Spildevand | C119: oer2 | D119: Anlægsprojekter igangsat senest 1. marts 2016 | E119: 0 | F119: 0 | H119: 1. Marts 2016
A120: faxe vandforsyning as | B120: Drikkevand | C120: v047 | D120: Anlægsprojekter igangsat senest 1. marts 2016 | E120: 0 | F120: 90427.84353 | H120: 1. Marts 2016
A121: frederikssund spildevand as | B121: Spildevand | C121: s026 | D121: Byggemodninger, nykloakeringer og nye tilslutninger | E121: 144761 | F121: 261570 | H121: §11, stk. 4 (udvidelse) | I121: Godkendt | J121: Godtgjort at deres forsyningsområde eller vandmængder er udvidet, som følge af udvidelse af forsyningsområde eller håndterede vandmængder
A122: frederikssund spildevand as | B122: Spildevand | C122: s026 | D122: Oprensning af slambed 1 og 4 | E122: 100426 | F122: 0 | G122: 301278 | H122: §13, stk. 2 (periodevise) | I122: Godkendt | J122: Opfylder betingerne for tillæg.
A123: faxe vandvaerk smba | B123: Drikkevand | C123: v048 | D123: Anlægsprojekter igangsat senest 1. marts 2016 | E123: 0 | F123: 0 | H123: 1. Marts 2016
A124: ffv spildevand as | B124: Spildevand | C124: s020 | D124: Anlægsprojekter igangsat senest 1. marts 2016 | E124: 0 | F124: 0 | H124: 1. Marts 2016
A125: frederikssund spildevand as | B125: Spildevand | C125: s026 | D125: Oprensning af slambed 2 og 3 | E125: 95724 | F125: 0 | G125: 95724 | H125: §13, stk. 2 (periodevise) | I125: Godkendt | J125: Opfylder betingerne for tillæg.
A126: ffv spildevand as | B126: Spildevand | D126: Udskiftning af brønddæksler | H126: §11, Stk. 2 (ledningsomlægning) | I126: Afvist | J126: Opfylder ikke krav for tillæg.
A127: ffv vand as | B127: Drikkevand | C127: v050 | D127: Anlægsprojekter igangsat senest 1. marts 2016 | E127: 0 | F127: 0 | H127: 1. Marts 2016
A128: fjerritslev vand amba | B128: Drikkevand | C128: v051 | D128: Anlægsprojekter igangsat senest 1. marts 2016 | E128: 0 | F128: 0 | H128: 1. Marts 2016
A129: fonden djurs vand | B129: Drikkevand | C129: v052 | D129: Anlægsprojekter igangsat senest 1. marts 2016 | E129: 0 | F129: 0 | H129: 1. Marts 2016
A130: fors spildevand holbaek as | B130: Spildevand | C130: s047 | D130: Anlægsprojekter igangsat senest 1. marts 2016 | E130: 0 | F130: 345102.2033 | H130: 1. Marts 2016
A131: frederikssund spildevand as | B131: Spildevand | C131: s026 | D131: Oprensning af slambed 5, 6 og 7 | E131: 133699 | F131: 0 | H131: §13, stk. 2 (periodevise) | I131: Godkendt | J131: Opfylder betingerne for tillæg.
A132: fors spildevand lejre as | B132: Spildevand | C132: s061 | D132: Anlægsprojekter igangsat senest 1. marts 2016 | E132: 0 | F132: 24395.78667 | H132: 1. Marts 2016
A133: fors spildevand roskilde as | B133: Spildevand | C133: s080 | D133: Anlægsprojekter igangsat senest 1. marts 2016 | E133: 0 | F133: 425835.9967 | H133: 1. Marts 2016
A134: frederikssund vand as | B134: Drikkevand | C134: v058 | D134: Påbud om håndtering af DMS forurening | E134: 1398386 | F134: 0 | H134: §11 Stk. 1 (mål) | I134: Godkendt | J134: Der er tale om statsligt eller kommunalt fastsatmål, som overstiger væsentlighedsgrænsen og ligger uden for den ordinære driftsaktivitet.
A135: fors vand holbaek as | B135: Drikkevand | C135: v094 | D135: Anlægsprojekter igangsat senest 1. marts 2016 | E135: 0 | F135: 0 | H135: 1. Marts 2016
A136: fors vand lejre as | B136: Drikkevand | C136: v119 | D136: Anlægsprojekter igangsat senest 1. marts 2016 | E136: 0 | F136: 0 | H136: 1. Marts 2016
A137: fors vand roskilde as | B137: Drikkevand | C137: v155 | D137: Anlægsprojekter igangsat senest 1. marts 2016 | E137: 0 | F137: 139081.47 | H137: 1. Marts 2016
A138: forsyning helsingoer spildevand as | B138: Spildevand | C138: s021 | D138: Anlægsprojekter igangsat senest 1. marts 2016 | E138: 0 | F138: 0 | H138: 1. Marts 2016
A139: frederikssund vand as | B139: Drikkevand | C139: v058 | D139: Udvidelse af forsyningsområdet | E139: 49269 | F139: 55963 | H139: §11, stk. 4 (udvidelse) | I139: Godkendt | J139: Godtgjort at deres forsyningsområde eller vandmængder er udvidet, som følge af udvidelse af forsyningsområde eller håndterede vandmængder
A140: forsyning helsingoer vand as | B140: Drikkevand | C140: v053 | D140: Anlægsprojekter igangsat senest 1. marts 2016 | E140: 0 | F140: 0 | H140: 1. Marts 2016
A141: fredensborg spildevand as | B141: Spildevand | C141: s022 | D141: Anlægsprojekter igangsat senest 1. marts 2016 | E141: 0 | F141: 0 | H141: 1. Marts 2016
A142: fredensborg vand as | B142: Drikkevand | C142: v054 | D142: Anlægsprojekter igangsat senest 1. marts 2016 | E142: 0 | F142: 0 | H142: 1. Marts 2016
A143: fredericia spildevand og energi as | B143: Spildevand | C143: s023 | D143: Anlægsprojekter igangsat senest 1. marts 2016 | E143: 0 | F143: 9552.866667 | H143: 1. Marts 2016
A144: furesoe spildevand as | B144: Spildevand | C144: s027 | D144: Stiketablering 2017 og 2018 | E144: 72868 | F144: 11269 | H144: §11, stk. 4 (udvidelse) | I144: Godkendt | J144: Godtgjort at deres forsyningsområde eller vandmængder er udvidet, som følge af udvidelse af forsyningsområde eller håndterede vandmængder
A145: furesoe vandforsyning amba | B145: Drikkevand | C145: v059 | D145: Udvidelse af forsyningsområdet | E145: 0 | F145: 24525 | H145: §11, stk. 4 (udvidelse) | I145: Godkendt | J145: Godtgjort at deres forsyningsområde eller vandmængder er udvidet, som følge af udvidelse af forsyningsområde eller håndterede vandmængder
A146: frederiksberg kloak as | B146: Spildevand | C146: s024 | D146: Anlægsprojekter igangsat senest 1. marts 2016 | E146: 0 | F146: 0 | H146: 1. Marts 2016
A147: frederiksberg kloak as | B147: Spildevand | D147: GDPR | H147: §11 Stk. 1 (mål) | I147: Afvist | J147: Opfylder ikke krav for tillæg.
A148: galten vandvaerk | B148: Drikkevand | C148: v060 | D148: Nr. Vissing | E148: 0 | F148: 12893 | H148: §11, stk. 4 (udvidelse) | I148: Godkendt | J148: Godtgjort at deres forsyningsområde eller vandmængder er udvidet, som følge af udvidelse af forsyningsområde eller håndterede vandmængder
A149: frederiksberg vand as | B149: Drikkevand | C149: v055 | D149: Anlægsprojekter igangsat senest 1. marts 2016 | E149: 0 | F149: 1335736.664 | H149: 1. Marts 2016
A150: galten vandvaerk | B150: Drikkevand | C150: v060 | D150: Ny udstykning, Ellens Høj | E150: 0 | F150: 3752 | H150: §11, stk. 4 (udvidelse) | I150: Godkendt | J150: Godtgjort at deres forsyningsområde eller vandmængder er udvidet, som følge af udvidelse af forsyningsområde eller håndterede vandmængder
A151: gentofte spildevand as | B151: Spildevand | C151: s028 | D151: Vilhelmdalsløbet og Tuborg Syd | E151: 0 | F151: 115261 | H151: §11, Stk. 2 (ledningsomlægning) | I151: Godkendt | J151: Flytningen af jeres forsynings ledninger er en følge af arealejers retmæssige råderet over arealet, og at jeres anlægsomkostninger har været nødvendige i forbindelse med flytningen.
A152: frederiksberg vandvaerk | B152: Drikkevand | C152: v056 | D152: Anlægsprojekter igangsat senest 1. marts 2016 | E152: 0 | F152: 0 | H152: 1. Marts 2016
A153: frederikshavn spildevand as | B153: Spildevand | C153: s025 | D153: Anlægsprojekter igangsat senest 1. marts 2016 | E153: 0 | F153: 247311.4943 | H153: 1. Marts 2016
A154: frederikshavn vand as | B154: Drikkevand | C154: v057 | D154: Anlægsprojekter igangsat senest 1. marts 2016 | E154: 0 | F154: 40515.30667 | H154: 1. Marts 2016
A155: gentofte vand as | B155: Drikkevand | C155: v061 | D155: Ny udstykning | E155: 0 | F155: 5982 | H155: §11, stk. 4 (udvidelse) | I155: Godkendt | J155: Godtgjort at deres forsyningsområde eller vandmængder er udvidet, som følge af udvidelse af forsyningsområde eller håndterede vandmængder
A156: gladsaxe spildevand as | B156: Spildevand | C156: s029 | D156: Vilhelmdalsløbet omlægges | E156: 0 | F156: 116990 | H156: §11, Stk. 2 (ledningsomlægning) | I156: Godkendt | J156: Flytningen af jeres forsynings ledninger er en følge af arealejers retmæssige råderet over arealet, og at jeres anlægsomkostninger har været nødvendige i forbindelse med flytningen.
A157: gladsaxe spildevand as | B157: Spildevand | C157: s029 | D157: Nye tilslutninger | E157: 70114 | F157: 0 | H157: §11, stk. 4 (udvidelse) | I157: Godkendt | J157: Godtgjort at deres forsyningsområde eller vandmængder er udvidet, som følge af udvidelse af forsyningsområde eller håndterede vandmængder
A158: gladsaxe vand as | B158: Drikkevand | C158: v065 | D158: Lyngen og Pilegårdsvej | E158: 96396 | F158: 4061 | H158: §11, stk. 4 (udvidelse) | I158: Godkendt | J158: Godtgjort at deres forsyningsområde eller vandmængder er udvidet, som følge af udvidelse af forsyningsområde eller håndterede vandmængder
A159: frederikssund spildevand as | B159: Spildevand | C159: s026 | D159: Anlægsprojekter igangsat senest 1. marts 2016 | E159: 0 | F159: 447562.6667 | H159: 1. Marts 2016
A160: glostrup spildevand as | B160: Spildevand | C160: s030 | D160: Byggemodninger i 2018 | E160: 520 | F160: 3995 | H160: §11, stk. 4 (udvidelse) | I160: Godkendt | J160: Godtgjort at deres forsyningsområde eller vandmængder er udvidet, som følge af udvidelse af forsyningsområde eller håndterede vandmængder
A161: glostrup spildevand as | B161: Spildevand | C161: s030 | D161: Oprensning af Bækrenden | E161: 40432 | F161: 0 | G161: 404318 | H161: §13, stk. 2 (periodevise) | I161: Godkendt | J161: Opfylder betingerne for tillæg.
A162: glostrup spildevand as | B162: Spildevand | C162: s030 | D162: Oprensning af Væveren | E162: 81138 | F162: 0 | G162: 811383 | H162: §13, stk. 2 (periodevise) | I162: Godkendt | J162: Opfylder betingerne for tillæg.
A163: glostrup vand as | B163: Drikkevand | C163: v067 | D163: Byggemodninger | E163: 662 | F163: 776 | H163: §11, stk. 4 (udvidelse) | I163: Godkendt | J163: Godtgjort at deres forsyningsområde eller vandmængder er udvidet, som følge af udvidelse af forsyningsområde eller håndterede vandmængder
A164: frederikssund vand as | B164: Drikkevand | C164: v058 | D164: Anlægsprojekter igangsat senest 1. marts 2016 | E164: 0 | F164: 64743.96 | H164: 1. Marts 2016
A165: glostrup vand as | B165: Drikkevand | C165: v067 | D165: Justering af økonomisk ramme | E165: 579396 | F165: 0 | H165: §11, stk. 4 (udvidelse) | I165: Godkendt | J165: Godtgjort at deres forsyningsområde eller vandmængder er udvidet, som følge af udvidelse af forsyningsområde eller håndterede vandmængder
A166: greve spildevand as | B166: Spildevand | C166: s031 | D166: Byggemodninger | E166: 0 | F166: 455245 | H166: §11, stk. 4 (udvidelse) | I166: Godkendt | J166: Godtgjort at deres forsyningsområde eller vandmængder er udvidet, som følge af udvidelse af forsyningsområde eller håndterede vandmængder
A167: furesoe spildevand as | B167: Spildevand | C167: s027 | D167: Anlægsprojekter igangsat senest 1. marts 2016 | E167: 0 | F167: 341849.88 | H167: 1. Marts 2016
A168: greve vandvaerk amba | B168: Drikkevand | C168: v068 | D168: Udvidelse af forsyningsområdet | E168: 95592 | F168: 19168 | H168: §11, stk. 4 (udvidelse) | I168: Godkendt | J168: Godtgjort at deres forsyningsområde eller vandmængder er udvidet, som følge af udvidelse af forsyningsområde eller håndterede vandmængder
A169: furesoe vandforsyning amba | B169: Drikkevand | C169: v059 | D169: Anlægsprojekter igangsat senest 1. marts 2016 | E169: 0 | F169: 166111.56 | H169: 1. Marts 2016
A170: grindsted renseanlaeg as | B170: Spildevand | C170: s112 | D170: Dupont, ny kunde | E170: 1288825 | F170: 428015 | H170: §11, stk. 4 (udvidelse) | I170: Godkendt | J170: Godtgjort at deres forsyningsområde eller vandmængder er udvidet, som følge af udvidelse af forsyningsområde eller håndterede vandmængder
A171: galten vandvaerk | B171: Drikkevand | C171: v060 | D171: Anlægsprojekter igangsat senest 1. marts 2016 | E171: 0 | F171: 0 | H171: 1. Marts 2016
A172: grindsted vandvaerk amba | B172: Drikkevand | C172: v069 | D172: Morsbøl - omlægning af vandledning | E172: 0 | F172: 3113 | H172: §11, Stk. 2 (ledningsomlægning) | I172: Godkendt | J172: Flytningen af jeres forsynings ledninger er en følge af arealejers retmæssige råderet over arealet, og at jeres anlægsomkostninger har været nødvendige i forbindelse med flytningen.
A173: grindsted vandvaerk amba | B173: Drikkevand | C173: v069 | D173: Ny udstykning - Morsbøl Søvej | E173: 0 | F173: 2386 | H173: §11, stk. 4 (udvidelse) | I173: Godkendt | J173: Godtgjort at deres forsyningsområde eller vandmængder er udvidet, som følge af udvidelse af forsyningsområde eller håndterede vandmængder
A174: gentofte spildevand as | B174: Spildevand | C174: s028 | D174: Anlægsprojekter igangsat senest 1. marts 2016 | E174: 0 | F174: 117483 | H174: 1. Marts 2016
A175: haderslev spildevand as | B175: Spildevand | C175: s034 | D175: Byggemodninger, nye tilslutninger og ny-kloakeringer | E175: 106792 | F175: 1076613 | H175: §11, stk. 4 (udvidelse) | I175: Godkendt | J175: Godtgjort at deres forsyningsområde eller vandmængder er udvidet, som følge af udvidelse af forsyningsområde eller håndterede vandmængder
A176: gentofte vand as | B176: Drikkevand | C176: v061 | D176: Anlægsprojekter igangsat senest 1. marts 2016 | E176: 0 | F176: 0 | H176: 1. Marts 2016
A177: haderslev spildevand as | B177: Spildevand | D177: Tilbagebetaling af vejbidrag | G177: 4952000 | H177: §11, stk. 9 (vejbidrag) | I177: Godkendt | J177: Opfylder betingerne for tillæg.
A178: gilleleje vandvaerk amba | B178: Drikkevand | C178: v062 | D178: Anlægsprojekter igangsat senest 1. marts 2016 | E178: 0 | F178: 0 | H178: 1. Marts 2016
A179: give vandvaerk amba | B179: Drikkevand | C179: v063 | D179: Anlægsprojekter igangsat senest 1. marts 2016 | E179: 0 | F179: 0 | H179: 1. Marts 2016
A180: gl hoerning vandvaerk | B180: Drikkevand | C180: v064 | D180: Anlægsprojekter igangsat senest 1. marts 2016 | E180: 0 | F180: 0 | H180: 1. Marts 2016
A181: gladsaxe spildevand as | B181: Spildevand | C181: s029 | D181: Anlægsprojekter igangsat senest 1. marts 2016 | E181: 0 | F181: 1159932.39 | H181: 1. Marts 2016
A182: haderslev vand as | B182: Drikkevand | C182: v071 | D182: Omkørselsvej - Chr. X's Vej | E182: 0 | F182: 47185 | H182: §11, Stk. 2 (ledningsomlægning) | I182: Godkendt | J182: Flytningen af jeres forsynings ledninger er en følge af arealejers retmæssige råderet over arealet, og at jeres anlægsomkostninger har været nødvendige i forbindelse med flytningen.
A183: haderslev vand as | B183: Drikkevand | C183: v071 | D183: Nye tilslutninger | E183: 33979 | F183: 73488 | H183: §11, stk. 4 (udvidelse) | I183: Godkendt | J183: Godtgjort at deres forsyningsområde eller vandmængder er udvidet, som følge af udvidelse af forsyningsområde eller håndterede vandmængder
A184: gladsaxe vand as | B184: Drikkevand | C184: v065 | D184: Anlægsprojekter igangsat senest 1. marts 2016 | E184: 0 | F184: 0 | H184: 1. Marts 2016
A185: hilleroed spildevand as | B185: Spildevand | C185: s039 | D185: Udvidelse af forsyningsområdet | E185: 144414 | F185: 121535 | H185: §11, stk. 4 (udvidelse) | I185: Godkendt | J185: Godtgjort at deres forsyningsområde eller vandmængder er udvidet, som følge af udvidelse af forsyningsområde eller håndterede vandmængder
A186: glamsbjerg vandvaerk | B186: Drikkevand | C186: v066 | D186: Anlægsprojekter igangsat senest 1. marts 2016 | E186: 0 | F186: 0 | H186: 1. Marts 2016
A187: glostrup spildevand as | B187: Spildevand | C187: s030 | D187: Anlægsprojekter igangsat senest 1. marts 2016 | E187: 0 | F187: 0 | H187: 1. Marts 2016
A188: hilleroed spildevand as | B188: Spildevand | C188: s039 | D188: Skærpede udlederkrav | E188: 662325 | F188: 0 | H188: §11 Stk. 1 (mål) | I188: Godkendt | J188: Opfylder betingerne for tillæg.
A189: hilleroed vand as | B189: Drikkevand | C189: v081 | D189: Nye tilslutninger | E189: 128402 | F189: 0 | H189: §11, stk. 4 (udvidelse) | I189: Godkendt | J189: Godtgjort at deres forsyningsområde eller vandmængder er udvidet, som følge af udvidelse af forsyningsområde eller håndterede vandmængder
A190: hjallerup vandforsyning | B190: Drikkevand | C190: v083 | D190: Udvidelse af forsyningsområdet | E190: 59706 | F190: 0 | H190: §11, stk. 4 (udvidelse) | I190: Godkendt | J190: Godtgjort at deres forsyningsområde eller vandmængder er udvidet, som følge af udvidelse af forsyningsområde eller håndterede vandmængder
A191: glostrup vand as | B191: Drikkevand | C191: v067 | D191: Anlægsprojekter igangsat senest 1. marts 2016 | E191: 0 | F191: 1871930.46 | H191: 1. Marts 2016
A192: hjoerring vandselskab as | B192: Spildevand | C192: s040 | D192: Byggemodninger og nyt tilslutninger | E192: 105486 | F192: 268358 | H192: §11, stk. 4 (udvidelse) | I192: Godkendt | J192: Godtgjort at deres forsyningsområde eller vandmængder er udvidet, som følge af udvidelse af forsyningsområde eller håndterede vandmængder
A193: hjoerring vandselskab as | B193: Drikkevand | C193: v085 | D193: Udvidelse af forsyningsområde | E193: 16698 | F193: 25177 | H193: §11, stk. 4 (udvidelse) | I193: Godkendt | J193: Godtgjort at deres forsyningsområde eller vandmængder er udvidet, som følge af udvidelse af forsyningsområde eller håndterede vandmængder
A194: gram vandvaerk | B194: Drikkevand | C194: v002 | D194: Anlægsprojekter igangsat senest 1. marts 2016 | E194: 0 | F194: 0 | H194: 1. Marts 2016
A195: greve spildevand as | B195: Spildevand | C195: s031 | D195: Anlægsprojekter igangsat senest 1. marts 2016 | E195: 0 | F195: 633532.2933 | H195: 1. Marts 2016
A196: hoeng vandvaerk amba | B196: Drikkevand | C196: v101 | D196: Nye tilslutninger | E196: 44201 | F196: 5693 | H196: §11, stk. 4 (udvidelse) | I196: Godkendt | J196: Godtgjort at deres forsyningsområde eller vandmængder er udvidet, som følge af udvidelse af forsyningsområde eller håndterede vandmængder
A197: greve vandvaerk amba | B197: Drikkevand | C197: v068 | D197: Anlægsprojekter igangsat senest 1. marts 2016 | E197: 0 | F197: 231568.5067 | H197: 1. Marts 2016
A198: hoersholm vand aps | B198: Spildevand | C198: s051 | D198: Nye tilslutninger | E198: 50411 | F198: 0 | H198: §11, stk. 4 (udvidelse) | I198: Godkendt | J198: Godtgjort at deres forsyningsområde eller vandmængder er udvidet, som følge af udvidelse af forsyningsområde eller håndterede vandmængder
A199: gribvand spildevand as | B199: Spildevand | C199: s032 | D199: Anlægsprojekter igangsat senest 1. marts 2016 | E199: 0 | F199: 1133630.797 | H199: 1. Marts 2016
A200: gribvand spildevand as | B200: Spildevand | D200: Myg bekæmpelse | H200: §13, stk. 2 (periodevise) | I200: Afvist | J200: Opfylder ikke krav for tillæg.
... 384 more rows

Sheet §11 stk. 1 (mål).
A1: Selskab | B1: Forsyningsart | C1: FS ID | D1: Beskrivelse | E1: Driftsomkostninger | F1: Anlægsomkostninger | G1: Engangstillæg | H1: Type: §11 Stk. 1 (mål), §11, Stk. 2 (ledningsomlægning), §11, stk. 4 (udvidelse), §11 stk. 5 (medfinansiering), §11, stk. 6 (sup. Investering), §11, stk. 9 (vejbidrag), §13, stk. 2 (periodevise), §31, stk. 7 (vandindvinding) | I1: Godkendt/afvist | J1: Grund til godkendelse/ afvisning
A2: frederiksberg kloak as | B2: Spildevand | C2: s024 | D2: 2-partssekretariat | E2: 1834920 | F2: 0 | H2: §11 Stk. 1 (mål) | I2: Godkendt | J2: Der er tale om statsligt eller kommunalt fastsatmål, som overstiger væsentlighedsgrænsen og ligger uden for den ordinære driftsaktivitet.
A3: aarhus vand as | B3: Spildevand | C3: s110 | D3: Adskillelse 2018 | E3: 308871 | F3: 3606540 | H3: §11 Stk. 1 (mål) | I3: Godkendt | J3: Der er tale om statsligt eller kommunalt fastsatmål, som overstiger væsentlighedsgrænsen og ligger uden for den ordinære driftsaktivitet.
A4: nk spildevand as | B4: Spildevand | C4: s072 | D4: Afskærende ledninger | E4: 0 | F4: 564758 | H4: §11 Stk. 1 (mål) | I4: Godkendt | J4: Der er tale om statsligt eller kommunalt fastsatmål, som overstiger væsentlighedsgrænsen og ligger uden for den ordinære driftsaktivitet.
A5: fredericia spildevand og energi as | B5: Spildevand | C5: s023 | D5: Bystrategiprojekt | E5: 1391516 | F5: 0 | H5: §11 Stk. 1 (mål) | I5: Godkendt | J5: Der er tale om statsligt eller kommunalt fastsatmål, som overstiger væsentlighedsgrænsen og ligger uden for den ordinære driftsaktivitet.
A6: odder vandvaerk amba | B6: Drikkevand | D6: Ekstra drikkevandsanalyse | H6: §11 Stk. 1 (mål) | I6: Afvist | J6: Væsentlighedhedsgrænsen er ikke opfyldt.
A7: vejen vand | B7: Drikkevand | C7: v205 | D7: Etablering af nyt kildefelt | E7: 69787 | F7: 216843 | H7: §11 Stk. 1 (mål) | I7: Godkendt | J7: Der er tale om statsligt eller kommunalt fastsatmål, som overstiger væsentlighedsgrænsen og ligger uden for den ordinære driftsaktivitet.
A8: kalundborg overfladevand as | B8: Drikkevand | C8: v111 | D8: Filteranlæg, åbne filtre, dobbelt filtrering, Mek./EL | F8: 0 | G8: 616367 | H8: §11 Stk. 1 (mål) | I8: Godkendt
A9: frederikshavn vand as | B9: Drikkevand | C9: v057 | D9: Fjernaflæste målere | E9: 1221126 | F9: 226714 | H9: §11 Stk. 1 (mål) | I9: Godkendt | J9: Der er tale om statsligt eller kommunalt fastsatmål, som overstiger væsentlighedsgrænsen og ligger uden for den ordinære driftsaktivitet.
A10: ringkoebing skjern spildevand as | B10: Spildevand | D10: Fjernaflæste målere | H10: §11 Stk. 1 (mål) | I10: Afvist | J10: Væsentlighedhedsgrænsen er ikke opfyldt.
A11: afloeb ballerup as | B11: Spildevand | C11: s001 | D11: Garantiprovision | E11: 0 | F11: 80549 | G11: 402745 | H11: §11 Stk. 1 (mål) | I11: Godkendt | J11: Der er tale om statsligt eller kommunalt fastsatmål, som overstiger væsentlighedsgrænsen og ligger uden for den ordinære driftsaktivitet.
A12: alleroed spildevand as | B12: Spildevand | C12: s002 | D12: Garantiprovision | E12: 0 | F12: 820962 | G12: 4925772 | H12: §11 Stk. 1 (mål) | I12: Godkendt | J12: Der er tale om statsligt eller kommunalt fastsatmål, som overstiger væsentlighedsgrænsen og ligger uden for den ordinære driftsaktivitet.
A13: frederiksberg vand as | B13: Drikkevand | D13: GDPR | H13: §11 Stk. 1 (mål) | I13: Afvist | J13: Der er således tale om et databeskyttelsesformål, hvilket ikke kan ligestilles et mål inden for miljø, sundhed, energieffektivitet, klimaindsatser, forsyningssikkerhed eller service.
A14: frederiksberg kloak as | B14: Spildevand | D14: GDPR | H14: §11 Stk. 1 (mål) | I14: Afvist | J14: Opfylder ikke krav for tillæg.
A15: hilleroed spildevand as | B15: Spildevand | D15: GDPR | H15: §11 Stk. 1 (mål) | I15: Afvist | J15: Opfylder ikke krav for tillæg.
A16: aarhus vand as | B16: Spildevand | D16: GDPR | H16: §11 Stk. 1 (mål) | I16: Afvist | J16: Der er således tale om et databeskyttelsesformål, hvilket ikke kan ligestilles et mål inden for miljø, sundhed, energieffektivitet, klimaindsatser, forsyningssikkerhed eller service.
A17: aarhus vand as | B17: Drikkevand | D17: GDPR | H17: §11 Stk. 1 (mål) | I17: Afvist | J17: Der er således tale om et databeskyttelsesformål, hvilket ikke kan ligestilles et mål inden for miljø, sundhed, energieffektivitet, klimaindsatser, forsyningssikkerhed eller service.
A18: ringkoebing skjern vand as | B18: Drikkevand | C18: v153 | D18: Grundvandsbeskyttelse | F18: 0 | G18: 399075 | H18: §11 Stk. 1 (mål) | I18: Godkendt | J18: Der er tale om statsligt eller kommunalt fastsatmål, som overstiger væsentlighedsgrænsen og ligger uden for den ordinære driftsaktivitet.
A19: ulsted aalebaek vandvaerk amba | B19: Drikkevand | C19: v195 | D19: Grundvandsbeskyttelse | E19: 72963 | F19: 0 | H19: §11 Stk. 1 (mål) | I19: Godkendt | J19: Der er tale om statsligt eller kommunalt fastsatmål, som overstiger væsentlighedsgrænsen og ligger uden for den ordinære driftsaktivitet.
A20: aarhus vand as | B20: Drikkevand | C20: v220 | D20: Grundvandsbeskyttelse | E20: 5130000 | F20: 0 | H20: §11 Stk. 1 (mål) | I20: Godkendt | J20: Der er tale om statsligt eller kommunalt fastsatmål, som overstiger væsentlighedsgrænsen og ligger uden for den ordinære driftsaktivitet.
A21: vand ballerup as | B21: Drikkevand | C21: v197 | D21: Grundvandsbeskyttelse - Tørvesletten | F21: 0 | G21: 597350 | H21: §11 Stk. 1 (mål) | I21: Godkendt | J21: Der er tale om statsligt eller kommunalt fastsatmål, som overstiger væsentlighedsgrænsen og ligger uden for den ordinære driftsaktivitet.
A22: vsk amba | B22: Drikkevand | C22: v213 | D22: Grundvandssikring | F22: 0 | G22: 103163 | H22: §11 Stk. 1 (mål) | I22: Godkendt | J22: Der er tale om statsligt eller kommunalt fastsatmål, som overstiger væsentlighedsgrænsen og ligger uden for den ordinære driftsaktivitet.
A23: vandforsyningen brovst og omegn | B23: Drikkevand | C23: v200 | D23: Grundvandssikring ved skovrejsning | F23: 0 | G23: 63404 | H23: §11 Stk. 1 (mål) | I23: Godkendt | J23: Der er tale om statsligt eller kommunalt fastsatmål, som overstiger væsentlighedsgrænsen og ligger uden for den ordinære driftsaktivitet.
A24: hofor vand koebenhavn as | B24: Drikkevand | C24: v091 | D24: Gulddysseskov | E24: 500000 | F24: 0 | H24: §11 Stk. 1 (mål) | I24: Godkendt | J24: Der er tale om statsligt eller kommunalt fastsatmål, som overstiger væsentlighedsgrænsen og ligger uden for den ordinære driftsaktivitet.
A25: frederiksberg vand as | B25: Drikkevand | C25: v055 | D25: ISO certificering | F25: 0 | G25: 1636896 | H25: §11 Stk. 1 (mål) | I25: Godkendt | J25: Der er tale om statsligt eller kommunalt fastsatmål, som overstiger væsentlighedsgrænsen og ligger uden for den ordinære driftsaktivitet.
A26: hofor spildevand roedovre as | B26: Spildevand | D26: Jordbassin Klasse A | H26: §11 Stk. 1 (mål) | I26: Afvist | J26: Overstiger ikke væsentlighedsgrænsen.
A27: htk vand as | B27: Drikkevand | C27: v098 | D27: Justering af den økonomiske ramme | E27: 61500 | F27: 7251 | H27: §11 Stk. 1 (mål) | I27: Godkendt | J27: § 14 - Der er vores vurdering, at § 14 netop skal bruges i situationer, hvor et selskab går fra at købe vand af et andet vandselskab, til selv af indvinde vand. Det er derfor vores vurdering, at jeres aktivitet er ændret væsentligt.
A28: hofor spildevand koebenhavn as | B28: Spildevand | C28: s045 | D28: Klimasikring | E28: 0 | F28: 859049 | H28: §11 Stk. 1 (mål) | I28: Godkendt | J28: Der er tale om statsligt eller kommunalt fastsatmål, som overstiger væsentlighedsgrænsen og ligger uden for den ordinære driftsaktivitet.
A29: aarhus vand as | B29: Spildevand | C29: s110 | D29: Klimaunderstøttende tiltag | E29: 2493390 | F29: 2261173 | H29: §11 Stk. 1 (mål) | I29: Godkendt | J29: Der er tale om statsligt eller kommunalt fastsatmål, som overstiger væsentlighedsgrænsen og ligger uden for den ordinære driftsaktivitet.
A30: hofor spildevand koebenhavn as | B30: Spildevand | C30: s045 | D30: Masterplaner | E30: 4667264 | F30: 0 | H30: §11 Stk. 1 (mål) | I30: Godkendt | J30: Der er tale om statsligt eller kommunalt fastsatmål, som overstiger væsentlighedsgrænsen og ligger uden for den ordinære driftsaktivitet.
A31: fors spildevand roskilde as | B31: Spildevand | C31: s080 | D31: Milen | E31: 0 | F31: 1585723 | H31: §11 Stk. 1 (mål) | I31: Godkendt | J31: Der er tale om statsligt eller kommunalt fastsatmål, som overstiger væsentlighedsgrænsen og ligger uden for den ordinære driftsaktivitet.
A32: trefor vand as | B32: Drikkevand | C32: v188 | D32: Ny drikkevandsbekendtgørelse | E32: 771339 | F32: 0 | H32: §11 Stk. 1 (mål) | I32: Godkendt | J32: Der er tale om statsligt eller kommunalt fastsatmål, som overstiger væsentlighedsgrænsen og ligger uden for den ordinære driftsaktivitet.
A33: gribvand spildevand as | B33: Spildevand | D33: Ny persondatalovgivning (GDPR) | H33: §11 Stk. 1 (mål) | I33: Afvist | J33: Opfylder ikke krav for tillæg.
A34: kerteminde forsyning vand as | B34: Drikkevand | C34: v113 | D34: Nye regler for kvalitetskrav af vand | E34: 280463 | F34: 74938 | H34: §11 Stk. 1 (mål) | I34: Godkendt | J34: Der er tale om statsligt eller kommunalt fastsatmål, som overstiger væsentlighedsgrænsen og ligger uden for den ordinære driftsaktivitet.
A35: vestforsyning spildevand as | B35: Spildevand | D35: Nyt overløbsbygværk | H35: §11 Stk. 1 (mål) | I35: Afvist | J35: Væsentlighedhedsgrænsen er ikke opfyldt.
A36: andelsselskabet strandhuse nr bjert vandvaerk | B36: Drikkevand | C36: v009 | D36: Nyt vej-T i Nr. Bjert | E36: 0 | F36: 4482 | H36: §11 Stk. 1 (mål) | I36: Godkendt | J36: Der er tale om statsligt eller kommunalt fastsatmål, som overstiger væsentlighedsgrænsen og ligger uden for den ordinære driftsaktivitet.
A37: verdo vand as | B37: Drikkevand | D37: Oust Mølle Folkeskov | H37: §11 Stk. 1 (mål) | I37: Afvist | J37: Der kan ikke gives tillæg på baggrund af omkostninger, der er afholdt i 2016, da tillæg gives på baggrund af omkostninger afholdt i det forudgående kalenderår.
A38: biofos spildevandscenter avedoere as | B38: Spildevand | C38: s009 | D38: Påbud om adskillelse af restprodukter | E38: 0 | F38: 49233 | G38: 484228 | H38: §11 Stk. 1 (mål) | I38: Godkendt | J38: Der er tale om statsligt eller kommunalt fastsatmål, som overstiger væsentlighedsgrænsen og ligger uden for den ordinære driftsaktivitet.
A39: frederikssund vand as | B39: Drikkevand | C39: v058 | D39: Påbud om håndtering af DMS forurening | E39: 1398386 | F39: 0 | H39: §11 Stk. 1 (mål) | I39: Godkendt | J39: Der er tale om statsligt eller kommunalt fastsatmål, som overstiger væsentlighedsgrænsen og ligger uden for den ordinære driftsaktivitet.
A40: ringkoebing skjern vand as | B40: Drikkevand | C40: v153 | D40: Registrering af historiske ledninger | E40: 109373 | F40: 0 | H40: §11 Stk. 1 (mål) | I40: Godkendt | J40: Der er tale om statsligt eller kommunalt fastsatmål, som overstiger væsentlighedsgrænsen og ligger uden for den ordinære driftsaktivitet.
A41: vandscenter syd as | B41: Spildevand | D41: Regnvandsbassin og Klimaklar Skibhusvej | H41: §11 Stk. 1 (mål) | I41: Afvist | J41: Væsentlighedhedsgrænsen er ikke opfyldt.
A42: kalundborg overfladevand as | B42: Drikkevand | C42: v111 | D42: Rentvandsbeholder element | F42: 0 | G42: 419924 | H42: §11 Stk. 1 (mål) | I42: Godkendt
A43: aarhus vand as | B43: Spildevand | C43: s110 | D43: Returpumpning | E43: 352892 | F43: 0 | H43: §11 Stk. 1 (mål) | I43: Godkendt | J43: Der er tale om statsligt eller kommunalt fastsatmål, som overstiger væsentlighedsgrænsen og ligger uden for den ordinære driftsaktivitet.
A44: ringsted spildevand as | B44: Spildevand | C44: s079 | D44: Rottebekæmpelse | E44: 1108924 | F44: 194724 | H44: §11 Stk. 1 (mål) | I44: Godkendt | J44: Der er tale om statsligt eller kommunalt fastsatmål, som overstiger væsentlighedsgrænsen og ligger uden for den ordinære driftsaktivitet.
A45: hofor vand broenby as | B45: Drikkevand | D45: Sektionering | H45: §11 Stk. 1 (mål) | I45: Afvist | J45: Væsentlighedhedsgrænsen er ikke opfyldt.
A46: horsens vand as | B46: Spildevand | C46: s048 | D46: Separatkloakering | E46: 84279 | F46: 1996507 | H46: §11 Stk. 1 (mål) | I46: Godkendt | J46: Der er tale om statsligt eller kommunalt fastsatmål, som overstiger væsentlighedsgrænsen og ligger uden for den ordinære driftsaktivitet.
A47: vejle spildevand as | B47: Spildevand | D47: Separatkloakering | H47: §11 Stk. 1 (mål) | I47: Afvist | J47: Væsentlighedhedsgrænsen er ikke opfyldt.
A48: ringsted spildevand as | B48: Spildevand | C48: s079 | D48: Separatkloakering 2017 og 2018 | E48: 0 | F48: 1027314 | H48: §11 Stk. 1 (mål) | I48: Godkendt | J48: Der er tale om statsligt eller kommunalt fastsatmål, som overstiger væsentlighedsgrænsen og ligger uden for den ordinære driftsaktivitet.
A49: soenderborg spildevandsforsyning as | B49: Spildevand | C49: s093 | D49: Separatkloakeringer | E49: 0 | F49: 3026988 | H49: §11 Stk. 1 (mål) | I49: Godkendt | J49: Der er tale om statsligt eller kommunalt fastsatmål, som overstiger væsentlighedsgrænsen og ligger uden for den ordinære driftsaktivitet.
A50: toender spildevand as | B50: Spildevand | C50: s096 | D50: Separatkloakeringsprojekter | E50: 413720 | F50: 170264 | H50: §11 Stk. 1 (mål) | I50: Godkendt | J50: Der er tale om statsligt eller kommunalt fastsatmål, som overstiger væsentlighedsgrænsen og ligger uden for den ordinære driftsaktivitet.
A51: arwos spildevand as | B51: Spildevand | D51: Separering | H51: §11 Stk. 1 (mål) | I51: Afvist | J51: Væsentlighedhedsgrænsen er ikke opfyldt.
A52: energi viborg vand as | B52: Spildevand | C52: s014 | D52: Separering | E52: 36584 | F52: 549834 | H52: §11 Stk. 1 (mål) | I52: Godkendt | J52: Der er tale om statsligt eller kommunalt fastsatmål, som overstiger væsentlighedsgrænsen og ligger uden for den ordinære driftsaktivitet.
A53: skanderborg forsyningsvirksomhed as | B53: Spildevand | C53: s085 | D53: Separering | E53: 0 | F53: 2025311 | H53: §11 Stk. 1 (mål) | I53: Godkendt | J53: Der er tale om statsligt eller kommunalt fastsatmål, som overstiger væsentlighedsgrænsen og ligger uden for den ordinære driftsaktivitet.
A54: nk vand as | B54: Drikkevand | D54: Sikring af boringer på land for oversvømmelse | H54: §11 Stk. 1 (mål) | I54: Afvist | J54: Væsentlighedhedsgrænsen er ikke opfyldt.
A55: kalundborg overfladevand as | B55: Drikkevand | C55: v111 | D55: Skyllevandsbehandling, inkl. UV-filter mv., Mek./EL | F55: 0 | G55: 616368 | H55: §11 Stk. 1 (mål) | I55: Godkendt
A56: hilleroed spildevand as | B56: Spildevand | C56: s039 | D56: Skærpede udlederkrav | E56: 662325 | F56: 0 | H56: §11 Stk. 1 (mål) | I56: Godkendt | J56: Opfylder betingerne for tillæg.
A57: aarhus vand as | B57: Spildevand | C57: s110 | D57: Slambortskaffelse | E57: 839203 | F57: 0 | H57: §11 Stk. 1 (mål) | I57: Godkendt | J57: Der er tale om statsligt eller kommunalt fastsatmål, som overstiger væsentlighedsgrænsen og ligger uden for den ordinære driftsaktivitet.
A58: kalundborg overfladevand as | B58: Drikkevand | C58: v111 | D58: SRO-anlæg, vandværk | F58: 0 | G58: 213518 | H58: §11 Stk. 1 (mål) | I58: Godkendt
A59: aarhus vand as | B59: Drikkevand | C59: v220 | D59: Strukturplan | E59: 0 | F59: 703291 | H59: §11 Stk. 1 (mål) | I59: Godkendt | J59: Der er tale om statsligt eller kommunalt fastsatmål, som overstiger væsentlighedsgrænsen og ligger uden for den ordinære driftsaktivitet.
A60: ringkoebing skjern spildevand as | B60: Spildevand | C60: s077 | D60: TV inspektion af historiske ledninger | E60: 612390 | F60: 0 | H60: §11 Stk. 1 (mål) | I60: Godkendt | J60: Der er tale om statsligt eller kommunalt fastsatmål, som overstiger væsentlighedsgrænsen og ligger uden for den ordinære driftsaktivitet.
A61: loekken vandvaerk | B61: Drikkevand | C61: v130 | D61: Udtagning af ekstra analyser | E61: 77763 | F61: 0 | H61: §11 Stk. 1 (mål) | I61: Godkendt | J61: Der er tale om statsligt eller kommunalt fastsatmål, som overstiger væsentlighedsgrænsen og ligger uden for den ordinære driftsaktivitet.
A62: ikast brande spildevand as | B62: Spildevand | D62: Uhre og Hampen samt Pårup og Myl. Erichsens Vej | H62: §11 Stk. 1 (mål) | I62: Afvist | J62: Overstiger ikke væsentlighedsgrænsen.
A63: vandcenter syd as | B63: Drikkevand | D63: UV behandling | H63: §11 Stk. 1 (mål) | I63: Afvist | J63: Væsentlighedhedsgrænsen er ikke opfyldt.
A64: broager vandvaerk amba | B64: Drikkevand | C64: v033 | D64: Vandsamarbejde - grundvandsbeskyttelse | E64: 92804 | F64: 0 | H64: §11 Stk. 1 (mål) | I64: Godkendt | J64: Der er tale om statsligt eller kommunalt fastsatmål, som overstiger væsentlighedsgrænsen og ligger uden for den ordinære driftsaktivitet.
A65: soenderborg vandforsyning as | B65: Drikkevand | C65: v181 | D65: Vandsamarbejde - grundvandsbeskyttelse | E65: 433938 | F65: 0 | H65: §11 Stk. 1 (mål) | I65: Godkendt | J65: Der er tale om statsligt eller kommunalt fastsatmål, som overstiger væsentlighedsgrænsen og ligger uden for den ordinære driftsaktivitet.
A66: sydals oest vandforsyning | B66: Drikkevand | C66: v180 | D66: Vandsamarbejde, Sønderborg | E66: 61021 | F66: 0 | H66: §11 Stk. 1 (mål) | I66: Godkendt | J66: Der er tale om statsligt eller kommunalt fastsatmål, som overstiger væsentlighedsgrænsen og ligger uden for den ordinære driftsaktivitet.
A67: hofor vand hvidovre as | B67: Drikkevand | D67: Øget kontrol grundet pesticider | H67: §11 Stk. 1 (mål) | I67: Afvist | J67: Det er vores vurdering, at omkostningen ikke vedrører en aktivitet til opfyldelse af de nye krav i drikkevandsbekendtgørelsen (BEK nr. 1068 af 23. august 2018), men at omkostningen er en følge af den konstaterede forurening.

Sheet § 11 stk. 2 (ledningsomlægning)
A1: Selskab | B1: Forsyningsart | C1: FS ID | D1: Beskrivelse | E1: Driftsomkostninger | F1: Anlægsomkostninger | G1: Engangstillæg | H1: Type: §11 Stk. 1 (mål), §11, Stk. 2 (ledningsomlægning), §11, stk. 4 (udvidelse), §11 stk. 5 (medfinansiering), §11, stk. 6 (sup. Investering), §11, stk. 9 (vejbidrag), §13, stk. 2 (periodevise), §31, stk. 7 (vandindvinding) | I1: Godkendt/afvist | J1: Grund til godkendelse/ afvisning
A2: alleroed spildevand as | B2: Spildevand | C2: s002 | D2: Flytning af forsyningsledninger | E2: 0 | F2: 54301 | H2: §11, Stk. 2 (ledningsomlægning) | I2: Godkendt | J2: Flytningen af jeres forsynings ledninger er en følge af arealejers retmæssige råderet over arealet, og at jeres anlægsomkostninger har været nødvendige i forbindelse med flytningen.
A3: arwos spildevand as | B3: Spildevand | C3: s004 | D3: Fladhøjparken & Hærvejsskolen | E3: 0 | F3: 5230 | H3: §11, Stk. 2 (ledningsomlægning) | I3: Godkendt | J3: Flytningen af jeres forsynings ledninger er en følge af arealejers retmæssige råderet over arealet, og at jeres anlægsomkostninger har været nødvendige i forbindelse med flytningen.
A4: billund spildevand as | B4: Spildevand | C4: s007 | D4: Flytning af ledninger ved Lego House | E4: 0 | F4: 5190 | H4: §11, Stk. 2 (ledningsomlægning) | I4: Godkendt | J4: Flytningen af jeres forsynings ledninger er en følge af arealejers retmæssige råderet over arealet, og at jeres anlægsomkostninger har været nødvendige i forbindelse med flytningen.
A5: bluekolding spildevand as | B5: Spildevand | C5: s058 | D5: Flytning af ledninger ved Gl. Strandvej | E5: 0 | F5: 18238 | H5: §11, Stk. 2 (ledningsomlægning) | I5: Godkendt | J5: Flytningen af jeres forsynings ledninger er en følge af arealejers retmæssige råderet over arealet, og at jeres anlægsomkostninger har været nødvendige i forbindelse med flytningen.
A6: din forsyning vand as | B6: Drikkevand | C6: v044 | D6: Flytning af ledninger | E6: 0 | F6: 44994 | H6: §11, Stk. 2 (ledningsomlægning) | I6: Godkendt | J6: Flytningen af jeres forsynings ledninger er en følge af arealejers retmæssige råderet over arealet, og at jeres anlægsomkostninger har været nødvendige i forbindelse med flytningen.
A7: forsyning helsingoer spildevand as | B7: Spildevand | C7: s021 | D7: Flytning af ledninger i 2018 | E7: 0 | F7: 166307 | H7: §11, Stk. 2 (ledningsomlægning) | I7: Godkendt | J7: Flytningen af jeres forsynings ledninger er en følge af arealejers retmæssige råderet over arealet, og at jeres anlægsomkostninger har været nødvendige i forbindelse med flytningen.
A8: ffv spildevand as | B8: Spildevand | D8: Udskiftning af brønddæksler | H8: §11, Stk. 2 (ledningsomlægning) | I8: Afvist | J8: Opfylder ikke krav for tillæg.
A9: gentofte spildevand as | B9: Spildevand | C9: s028 | D9: Vilhelmdalsløbet og Tuborg Syd | E9: 0 | F9: 115261 | H9: §11, Stk. 2 (ledningsomlægning) | I9: Godkendt | J9: Flytningen af jeres forsynings ledninger er en følge af arealejers retmæssige råderet over arealet, og at jeres anlægsomkostninger har været nødvendige i forbindelse med flytningen.
A10: gladsaxe spildevand as | B10: Spildevand | C10: s029 | D10: Vilhelmdalsløbet omlægges | E10: 0 | F10: 116990 | H10: §11, Stk. 2 (ledningsomlægning) | I10: Godkendt | J10: Flytningen af jeres forsynings ledninger er en følge af arealejers retmæssige råderet over arealet, og at jeres anlægsomkostninger har været nødvendige i forbindelse med flytningen.
A11: grindsted vandvaerk amba | B11: Drikkevand | C11: v069 | D11: Morsbøl - omlægning af vandledning | E11: 0 | F11: 3113 | H11: §11, Stk. 2 (ledningsomlægning) | I11: Godkendt | J11: Flytningen af jeres forsynings ledninger er en følge af arealejers retmæssige råderet over arealet, og at jeres anlægsomkostninger har været nødvendige i forbindelse med flytningen.
A12: haderslev vand as | B12: Drikkevand | C12: v071 | D12: Omkørselsvej - Chr. X's Vej | E12: 0 | F12: 47185 | H12: §11, Stk. 2 (ledningsomlægning) | I12: Godkendt | J12: Flytningen af jeres forsynings ledninger er en følge af arealejers retmæssige råderet over arealet, og at jeres anlægsomkostninger har været nødvendige i forbindelse med flytningen.
A13: hofor spildevand hvidovre as | B13: Spildevand | C13: s044 | D13: Avedøre Tværvej | E13: 0 | F13: 110563 | H13: §11, Stk. 2 (ledningsomlægning) | I13: Godkendt | J13: Flytningen af jeres forsynings ledninger er en følge af arealejers retmæssige råderet over arealet, og at jeres anlægsomkostninger har været nødvendige i forbindelse med flytningen.
A14: hofor spildevand koebenhavn as | B14: Spildevand | C14: s045 | D14: Vilhelmdalsløbet og Reventlowsgade | E14: 0 | F14: 219974 | H14: §11, Stk. 2 (ledningsomlægning) | I14: Godkendt | J14: Flytningen af jeres forsynings ledninger er en følge af arealejers retmæssige råderet over arealet, og at jeres anlægsomkostninger har været nødvendige i forbindelse med flytningen.
A15: hofor vand hvidovre as | B15: Drikkevand | C15: v090 | D15: Avedøre Tværvej | E15: 0 | F15: 5921 | H15: §11, Stk. 2 (ledningsomlægning) | I15: Godkendt | J15: Flytningen af jeres forsynings ledninger er en følge af arealejers retmæssige råderet over arealet, og at jeres anlægsomkostninger har været nødvendige i forbindelse med flytningen.
A16: hofor vand koebenhavn as | B16: Drikkevand | C16: v091 | D16: Flytning af forsyningsledninger | E16: 0 | F16: 285576 | H16: §11, Stk. 2 (ledningsomlægning) | I16: Godkendt | J16: Flytningen af jeres forsynings ledninger er en følge af arealejers retmæssige råderet over arealet, og at jeres anlægsomkostninger har været nødvendige i forbindelse med flytningen.
A17: lolland vand as | B17: Drikkevand | C17: v125 | D17: Afkørsel 48 | E17: 0 | F17: 7509 | H17: §11, Stk. 2 (ledningsomlægning) | I17: Godkendt | J17: Flytningen af jeres forsynings ledninger er en følge af arealejers retmæssige råderet over arealet, og at jeres anlægsomkostninger har været nødvendige i forbindelse med flytningen.
A18: lyngby taarbaek vand as | B18: Drikkevand | C18: v126 | D18: Omlægning af ledninger | E18: 0 | F18: 12671 | H18: §11, Stk. 2 (ledningsomlægning) | I18: Godkendt | J18: Flytningen af jeres forsynings ledninger er en følge af arealejers retmæssige råderet over arealet, og at jeres anlægsomkostninger har været nødvendige i forbindelse med flytningen.
A19: nk spildevand as | B19: Spildevand | C19: s072 | D19: Banedanmarks Femern Bælt-projekt | E19: 0 | F19: 11474 | H19: §11, Stk. 2 (ledningsomlægning) | I19: Godkendt | J19: Flytningen af jeres forsynings ledninger er en følge af arealejers retmæssige råderet over arealet, og at jeres anlægsomkostninger har været nødvendige i forbindelse med flytningen.
A20: nk vand as | B20: Drikkevand | C20: v137 | D20: Flytning af forsyningsledninger | E20: 0 | F20: 5310 | G20: 140452 | H20: §11, Stk. 2 (ledningsomlægning) | I20: Godkendt | J20: Flytningen af jeres forsynings ledninger er en følge af arealejers retmæssige råderet over arealet, og at jeres anlægsomkostninger har været nødvendige i forbindelse med flytningen.
A21: noerre alslev vandvaerk | B21: Drikkevand | C21: v143 | D21: Baneændring - Smedevej | E21: 0 | F21: 3983 | H21: §11, Stk. 2 (ledningsomlægning) | I21: Godkendt | J21: Flytningen af jeres forsynings ledninger er en følge af arealejers retmæssige råderet over arealet, og at jeres anlægsomkostninger har været nødvendige i forbindelse med flytningen.
A22: skanderborg forsyningsvirksomhed as | B22: Drikkevand | C22: v166 | D22: Flytning af ledninger E45 | E22: 0 | F22: 1629 | H22: §11, Stk. 2 (ledningsomlægning) | I22: Godkendt | J22: Flytningen af jeres forsynings ledninger er en følge af arealejers retmæssige råderet over arealet, og at jeres anlægsomkostninger har været nødvendige i forbindelse med flytningen.
A23: ulsted aalebaek vandvaerk amba | B23: Drikkevand | C23: v195 | D23: Etablering af nyt kloaknet i forsyningsområde | F23: 0 | G23: 722291 | H23: §11, Stk. 2 (ledningsomlægning) | I23: Godkendt | J23: Flytningen af jeres forsynings ledninger er en følge af arealejers retmæssige råderet over arealet, og at jeres anlægsomkostninger har været nødvendige i forbindelse med flytningen.
A24: vandcenter syd as | B24: Drikkevand | C24: v199 | D24: Letbane | E24: 0 | F24: 30322 | H24: §11, Stk. 2 (ledningsomlægning) | I24: Godkendt | J24: Flytningen af jeres forsynings ledninger er en følge af arealejers retmæssige råderet over arealet, og at jeres anlægsomkostninger har været nødvendige i forbindelse med flytningen.
A25: vandcenter syd as | B25: Spildevand | C25: s099 | D25: Odense Letbane og TBT projekt | E25: 0 | F25: 229056 | H25: §11, Stk. 2 (ledningsomlægning) | I25: Godkendt | J25: Flytningen af jeres forsynings ledninger er en følge af arealejers retmæssige råderet over arealet, og at jeres anlægsomkostninger har været nødvendige i forbindelse med flytningen.
A26: vandmiljoe randers as | B26: Spildevand | C26: s075 | D26: Gæsteprincip | E26: 420 | F26: 71099 | H26: §11, Stk. 2 (ledningsomlægning) | I26: Godkendt | J26: Flytningen af jeres forsynings ledninger er en følge af arealejers retmæssige råderet over arealet, og at jeres anlægsomkostninger har været nødvendige i forbindelse med flytningen.
A27: verdo vand as | B27: Drikkevand | C27: v206 | D27: Viborgvej | E27: 0 | F27: 27237 | H27: §11, Stk. 2 (ledningsomlægning) | I27: Godkendt | J27: Flytningen af jeres forsynings ledninger er en følge af arealejers retmæssige råderet over arealet, og at jeres anlægsomkostninger har været nødvendige i forbindelse med flytningen.
A28: vordingborg vand as | B28: Drikkevand | C28: v212 | D28: Sankt Clementsvej Banekrydsning | E28: 0 | F28: 8193 | H28: §11, Stk. 2 (ledningsomlægning) | I28: Godkendt | J28: Flytningen af jeres forsynings ledninger er en følge af arealejers retmæssige råderet over arealet, og at jeres anlægsomkostninger har været nødvendige i forbindelse med flytningen.
A29: aarhus vand as | B29: Drikkevand | C29: v220 | D29: Omlægninger | E29: 0 | F29: 54652 | H29: §11, Stk. 2 (ledningsomlægning) | I29: Godkendt | J29: Flytningen af jeres forsynings ledninger er en følge af arealejers retmæssige råderet over arealet, og at jeres anlægsomkostninger har været nødvendige i forbindelse med flytningen.
A30: aarhus vand as | B30: Spildevand | C30: s110 | D30: Omlægninger, spildevand | E30: 0 | F30: 42703 | H30: §11, Stk. 2 (ledningsomlægning) | I30: Godkendt | J30: Flytningen af jeres forsynings ledninger er en følge af arealejers retmæssige råderet over arealet, og at jeres anlægsomkostninger har været nødvendige i forbindelse med flytningen.

Sheet § 11 stk. 4 (udvidelse)
A1: Selskab | B1: Forsyningsart | C1: FS ID | D1: Beskrivelse | E1: Driftsomkostninger | F1: Anlægsomkostninger | G1: Engangstillæg | H1: Type: §11 Stk. 1 (mål), §11, Stk. 2 (ledningsomlægning), §11, stk. 4 (udvidelse), §11 stk. 5 (medfinansiering), §11, stk. 6 (sup. Investering), §11, stk. 9 (vejbidrag), §13, stk. 2 (periodevise), §31, stk. 7 (vandindvinding) | I1: Godkendt/afvist | J1: Grund til godkendelse/ afvisning
A2: afloeb ballerup as | B2: Spildevand | C2: s001 | D2: Brønde, stik og ledninger | E2: 38680 | F2: 23550 | H2: §11, stk. 4 (udvidelse) | I2: Godkendt | J2: Godtgjort at deres forsyningsområde eller vandmængder er udvidet, som følge af udvidelse af forsyningsområde eller håndterede vandmængder
A3: alleroed spildevand as | B3: Spildevand | C3: s002 | D3: Udvidelse af forsyningsområdet | E3: 255895 | F3: 30053 | H3: §11, stk. 4 (udvidelse) | I3: Godkendt | J3: Godtgjort at deres forsyningsområde eller vandmængder er udvidet, som følge af udvidelse af forsyningsområde eller håndterede vandmængder
A4: andelsselskabet stenloese vandvaerk | B4: Drikkevand | C4: v008 | D4: Udvidelse med seks forsyningsområder | E4: 0 | F4: 6437 | H4: §11, stk. 4 (udvidelse) | I4: Godkendt | J4: Opfylder betingerne for tillæg.
A5: arwos spildevand as | B5: Spildevand | C5: s004 | D5: Udvidelse af forsyningsområdet | E5: 0 | F5: 259880 | G5: 67359 | H5: §11, stk. 4 (udvidelse) | I5: Godkendt | J5: Godtgjort at deres forsyningsområde eller vandmængder er udvidet, som følge af udvidelse af forsyningsområde eller håndterede vandmængder
A6: arwos vand as | B6: Drikkevand | C6: v015 | D6: Byggemodninger og nye tilslutninger | E6: 0 | F6: 90801 | G6: 114056 | H6: §11, stk. 4 (udvidelse) | I6: Godkendt | J6: Godtgjort at deres forsyningsområde eller vandmængder er udvidet, som følge af udvidelse af forsyningsområde eller håndterede vandmængder
A7: billund drikkevand as | B7: Drikkevand | C7: v020 | D7: Byggemodninger | E7: 19063 | F7: 17628 | H7: §11, stk. 4 (udvidelse) | I7: Godkendt | J7: Godtgjort at deres forsyningsområde eller vandmængder er udvidet, som følge af udvidelse af forsyningsområde eller håndterede vandmængder
A8: billund spildevand as | B8: Spildevand | C8: s007 | D8: Byggemodninger | E8: 9328 | F8: 142242 | H8: §11, stk. 4 (udvidelse) | I8: Godkendt | J8: Godtgjort at deres forsyningsområde eller vandmængder er udvidet, som følge af udvidelse af forsyningsområde eller håndterede vandmængder
A9: bornholms spildevand as | B9: Spildevand | C9: s010 | D9: Nye tilslutninger | E9: 0 | F9: 58981 | H9: §11, stk. 4 (udvidelse) | I9: Godkendt | J9: Godtgjort at deres forsyningsområde eller vandmængder er udvidet, som følge af udvidelse af forsyningsområde eller håndterede vandmængder
A10: din forsyning spildevand as | B10: Spildevand | C10: s015 | D10: Byggemodninger og nye tilslutninger | E10: 118443 | F10: 1030155.8 | G10: 42975.6 | H10: §11, stk. 4 (udvidelse) | I10: Godkendt | J10: Godtgjort at deres forsyningsområde eller vandmængder er udvidet, som følge af udvidelse af forsyningsområde eller håndterede vandmængder
A11: din forsyning spildevand as | B11: Spildevand | C11: s015 | D11: Glycom | E11: 3720226 | F11: 0 | H11: §11, stk. 4 (udvidelse) | I11: Godkendt | J11: Godtgjort at deres forsyningsområde eller vandmængder er udvidet, som følge af udvidelse af forsyningsområde eller håndterede vandmængder
A12: din forsyning vand as | B12: Drikkevand | C12: v044 | D12: Byggemodninger og nye tilslutninger | E12: 206794 | F12: 239883 | H12: §11, stk. 4 (udvidelse) | I12: Godkendt | J12: Godtgjort at deres forsyningsområde eller vandmængder er udvidet, som følge af udvidelse af forsyningsområde eller håndterede vandmængder
A13: egedal spildevand as | B13: Spildevand | C13: s013 | D13: Etablering af nye stik i 2017 og 2018 | E13: 209943 | F13: 65486 | H13: §11, stk. 4 (udvidelse) | I13: Godkendt | J13: Godtgjort at deres forsyningsområde eller vandmængder er udvidet, som følge af udvidelse af forsyningsområde eller håndterede vandmængder
A14: energi viborg vand as | B14: Spildevand | C14: s014 | D14: Byggemodninger | E14: 37346 | F14: 194231 | H14: §11, stk. 4 (udvidelse) | I14: Godkendt | J14: Godtgjort at deres forsyningsområde eller vandmængder er udvidet, som følge af udvidelse af forsyningsområde eller håndterede vandmængder
A15: fanoe vand as | B15: Spildevand | C15: s016 | D15: Nye tilslutninger | E15: 28908 | F15: 52701 | H15: §11, stk. 4 (udvidelse) | I15: Godkendt | J15: Godtgjort at deres forsyningsområde eller vandmængder er udvidet, som følge af udvidelse af forsyningsområde eller håndterede vandmængder
A16: fanoe vand as | B16: Drikkevand | C16: v045 | D16: Nye tilslutninger | E16: 30964 | F16: 16487 | H16: §11, stk. 4 (udvidelse) | I16: Godkendt | J16: Godtgjort at deres forsyningsområde eller vandmængder er udvidet, som følge af udvidelse af forsyningsområde eller håndterede vandmængder
A17: faxe spildevand as | B17: Spildevand | C17: s018 | D17: Byggemodninger og nye tilslutninger | E17: 97310 | F17: 240779 | H17: §11, stk. 4 (udvidelse) | I17: Godkendt | J17: Godtgjort at deres forsyningsområde eller vandmængder er udvidet, som følge af udvidelse af forsyningsområde eller håndterede vandmængder
A18: faxe vandforsyning as | B18: Drikkevand | C18: v047 | D18: Forøgelse af salg til storkunde | E18: 553030 | F18: 0 | H18: §11, stk. 4 (udvidelse) | I18: Godkendt | J18: Godtgjort at deres forsyningsområde eller vandmængder er udvidet, som følge af udvidelse af forsyningsområde eller håndterede vandmængder
A19: faxe vandforsyning as | B19: Drikkevand | C19: v047 | D19: Nye forsyningsområder | E19: 479394 | F19: 82039 | H19: §11, stk. 4 (udvidelse) | I19: Godkendt | J19: Godtgjort at deres forsyningsområde eller vandmængder er udvidet, som følge af udvidelse af forsyningsområde eller håndterede vandmængder
A20: ffv spildevand as | B20: Spildevand | C20: s020 | D20: Byggemodninger og overtagelse af regnvandshåndtering | E20: 0 | F20: 42610 | H20: §11, stk. 4 (udvidelse) | I20: Godkendt | J20: Godtgjort at deres forsyningsområde eller vandmængder er udvidet, som følge af udvidelse af forsyningsområde eller håndterede vandmængder
A21: fors spildevand holbaek as | B21: Spildevand | C21: s047 | D21: Byggemodninger | E21: 0 | F21: 81607 | H21: §11, stk. 4 (udvidelse) | I21: Godkendt | J21: Godtgjort at deres forsyningsområde eller vandmængder er udvidet, som følge af udvidelse af forsyningsområde eller håndterede vandmængder
A22: fredericia spildevand og energi as | B22: Spildevand | C22: s023 | D22: Udvidelse af forsyningsområdet | E22: 121077 | F22: 16025 | H22: §11, stk. 4 (udvidelse) | I22: Godkendt | J22: Godtgjort at deres forsyningsområde eller vandmængder er udvidet, som følge af udvidelse af forsyningsområde eller håndterede vandmængder
A23: frederikshavn vand as | B23: Drikkevand | C23: v057 | D23: Byggemodninger | E23: 27215 | F23: 24551 | H23: §11, stk. 4 (udvidelse) | I23: Godkendt | J23: Godtgjort at deres forsyningsområde eller vandmængder er udvidet, som følge af udvidelse af forsyningsområde eller håndterede vandmængder
A24: frederikshavn vand as | B24: Drikkevand | C24: v057 | D24: Overtagelse af Voerså Vandværk | E24: 150525 | F24: 102754 | G24: 86741 | H24: §11, stk. 4 (udvidelse) | I24: Godkendt | J24: Godtgjort at deres forsyningsområde eller vandmængder er udvidet, som følge af udvidelse af forsyningsområde eller håndterede vandmængder
A25: frederikssund spildevand as | B25: Spildevand | C25: s026 | D25: Byggemodninger, nykloakeringer og nye tilslutninger | E25: 144761 | F25: 261570 | H25: §11, stk. 4 (udvidelse) | I25: Godkendt | J25: Godtgjort at deres forsyningsområde eller vandmængder er udvidet, som følge af udvidelse af forsyningsområde eller håndterede vandmængder
A26: frederikssund vand as | B26: Drikkevand | C26: v058 | D26: Udvidelse af forsyningsområdet | E26: 49269 | F26: 55963 | H26: §11, stk. 4 (udvidelse) | I26: Godkendt | J26: Godtgjort at deres forsyningsområde eller vandmængder er udvidet, som følge af udvidelse af forsyningsområde eller håndterede vandmængder
A27: furesoe spildevand as | B27: Spildevand | C27: s027 | D27: Stiketablering 2017 og 2018 | E27: 72868 | F27: 11269 | H27: §11, stk. 4 (udvidelse) | I27: Godkendt | J27: Godtgjort at deres forsyningsområde eller vandmængder er udvidet, som følge af udvidelse af forsyningsområde eller håndterede vandmængder
A28: furesoe vandforsyning amba | B28: Drikkevand | C28: v059 | D28: Udvidelse af forsyningsområdet | E28: 0 | F28: 24525 | H28: §11, stk. 4 (udvidelse) | I28: Godkendt | J28: Godtgjort at deres forsyningsområde eller vandmængder er udvidet, som følge af udvidelse af forsyningsområde eller håndterede vandmængder
A29: galten vandvaerk | B29: Drikkevand | C29: v060 | D29: Nr. Vissing | E29: 0 | F29: 12893 | H29: §11, stk. 4 (udvidelse) | I29: Godkendt | J29: Godtgjort at deres forsyningsområde eller vandmængder er udvidet, som følge af udvidelse af forsyningsområde eller håndterede vandmængder
A30: galten vandvaerk | B30: Drikkevand | C30: v060 | D30: Ny udstykning, Ellens Høj | E30: 0 | F30: 3752 | H30: §11, stk. 4 (udvidelse) | I30: Godkendt | J30: Godtgjort at deres forsyningsområde eller vandmængder er udvidet, som følge af udvidelse af forsyningsområde eller håndterede vandmængder
A31: gentofte vand as | B31: Drikkevand | C31: v061 | D31: Ny udstykning | E31: 0 | F31: 5982 | H31: §11, stk. 4 (udvidelse) | I31: Godkendt | J31: Godtgjort at deres forsyningsområde eller vandmængder er udvidet, som følge af udvidelse af forsyningsområde eller håndterede vandmængder
A32: gladsaxe spildevand as | B32: Spildevand | C32: s029 | D32: Nye tilslutninger | E32: 70114 | F32: 0 | H32: §11, stk. 4 (udvidelse) | I32: Godkendt | J32: Godtgjort at deres forsyningsområde eller vandmængder er udvidet, som følge af udvidelse af forsyningsområde eller håndterede vandmængder
A33: gladsaxe vand as | B33: Drikkevand | C33: v065 | D33: Lyngen og Pilegårdsvej | E33: 96396 | F33: 4061 | H33: §11, stk. 4 (udvidelse) | I33: Godkendt | J33: Godtgjort at deres forsyningsområde eller vandmængder er udvidet, som følge af udvidelse af forsyningsområde eller håndterede vandmængder
A34: glostrup spildevand as | B34: Spildevand | C34: s030 | D34: Byggemodninger i 2018 | E34: 520 | F34: 3995 | H34: §11, stk. 4 (udvidelse) | I34: Godkendt | J34: Godtgjort at deres forsyningsområde eller vandmængder er udvidet, som følge af udvidelse af forsyningsområde eller håndterede vandmængder
A35: glostrup vand as | B35: Drikkevand | C35: v067 | D35: Byggemodninger | E35: 662 | F35: 776 | H35: §11, stk. 4 (udvidelse) | I35: Godkendt | J35: Godtgjort at deres forsyningsområde eller vandmængder er udvidet, som følge af udvidelse af forsyningsområde eller håndterede vandmængder
A36: glostrup vand as | B36: Drikkevand | C36: v067 | D36: Justering af økonomisk ramme | E36: 579396 | F36: 0 | H36: §11, stk. 4 (udvidelse) | I36: Godkendt | J36: Godtgjort at deres forsyningsområde eller vandmængder er udvidet, som følge af udvidelse af forsyningsområde eller håndterede vandmængder
A37: greve spildevand as | B37: Spildevand | C37: s031 | D37: Byggemodninger | E37: 0 | F37: 455245 | H37: §11, stk. 4 (udvidelse) | I37: Godkendt | J37: Godtgjort at deres forsyningsområde eller vandmængder er udvidet, som følge af udvidelse af forsyningsområde eller håndterede vandmængder
A38: greve vandvaerk amba | B38: Drikkevand | C38: v068 | D38: Udvidelse af forsyningsområdet | E38: 95592 | F38: 19168 | H38: §11, stk. 4 (udvidelse) | I38: Godkendt | J38: Godtgjort at deres forsyningsområde eller vandmængder er udvidet, som følge af udvidelse af forsyningsområde eller håndterede vandmængder
A39: grindsted renseanlaeg as | B39: Spildevand | C39: s112 | D39: Dupont, ny kunde | E39: 1288825 | F39: 428015 | H39: §11, stk. 4 (udvidelse) | I39: Godkendt | J39: Godtgjort at deres forsyningsområde eller vandmængder er udvidet, som følge af udvidelse af forsyningsområde eller håndterede vandmængder
A40: grindsted vandvaerk amba | B40: Drikkevand | C40: v069 | D40: Ny udstykning - Morsbøl Søvej | E40: 0 | F40: 2386 | H40: §11, stk. 4 (udvidelse) | I40: Godkendt | J40: Godtgjort at deres forsyningsområde eller vandmængder er udvidet, som følge af udvidelse af forsyningsområde eller håndterede vandmængder
A41: haderslev spildevand as | B41: Spildevand | C41: s034 | D41: Byggemodninger, nye tilslutninger og ny-kloakeringer | E41: 106792 | F41: 1076613 | H41: §11, stk. 4 (udvidelse) | I41: Godkendt | J41: Godtgjort at deres forsyningsområde eller vandmængder er udvidet, som følge af udvidelse af forsyningsområde eller håndterede vandmængder
A42: haderslev vand as | B42: Drikkevand | C42: v071 | D42: Nye tilslutninger | E42: 33979 | F42: 73488 | H42: §11, stk. 4 (udvidelse) | I42: Godkendt | J42: Godtgjort at deres forsyningsområde eller vandmængder er udvidet, som følge af udvidelse af forsyningsområde eller håndterede vandmængder
A43: hilleroed spildevand as | B43: Spildevand | C43: s039 | D43: Udvidelse af forsyningsområdet | E43: 144414 | F43: 121535 | H43: §11, stk. 4 (udvidelse) | I43: Godkendt | J43: Godtgjort at deres forsyningsområde eller vandmængder er udvidet, som følge af udvidelse af forsyningsområde eller håndterede vandmængder
A44: hilleroed vand as | B44: Drikkevand | C44: v081 | D44: Nye tilslutninger | E44: 128402 | F44: 0 | H44: §11, stk. 4 (udvidelse) | I44: Godkendt | J44: Godtgjort at deres forsyningsområde eller vandmængder er udvidet, som følge af udvidelse af forsyningsområde eller håndterede vandmængder
A45: hjallerup vandforsyning | B45: Drikkevand | C45: v083 | D45: Udvidelse af forsyningsområdet | E45: 59706 | F45: 0 | H45: §11, stk. 4 (udvidelse) | I45: Godkendt | J45: Godtgjort at deres forsyningsområde eller vandmængder er udvidet, som følge af udvidelse af forsyningsområde eller håndterede vandmængder
A46: hjoerring vandselskab as | B46: Spildevand | C46: s040 | D46: Byggemodninger og nyt tilslutninger | E46: 105486 | F46: 268358 | H46: §11, stk. 4 (udvidelse) | I46: Godkendt | J46: Godtgjort at deres forsyningsområde eller vandmængder er udvidet, som følge af udvidelse af forsyningsområde eller håndterede vandmængder
A47: hjoerring vandselskab as | B47: Drikkevand | C47: v085 | D47: Udvidelse af forsyningsområde | E47: 16698 | F47: 25177 | H47: §11, stk. 4 (udvidelse) | I47: Godkendt | J47: Godtgjort at deres forsyningsområde eller vandmængder er udvidet, som følge af udvidelse af forsyningsområde eller håndterede vandmængder
A48: hoeng vandvaerk amba | B48: Drikkevand | C48: v101 | D48: Nye tilslutninger | E48: 44201 | F48: 5693 | H48: §11, stk. 4 (udvidelse) | I48: Godkendt | J48: Godtgjort at deres forsyningsområde eller vandmængder er udvidet, som følge af udvidelse af forsyningsområde eller håndterede vandmængder
A49: hoersholm vand aps | B49: Spildevand | C49: s051 | D49: Nye tilslutninger | E49: 50411 | F49: 0 | H49: §11, stk. 4 (udvidelse) | I49: Godkendt | J49: Godtgjort at deres forsyningsområde eller vandmængder er udvidet, som følge af udvidelse af forsyningsområde eller håndterede vandmængder
A50: hofor spildevand hvidovre as | B50: Spildevand | C50: s044 | D50: Langkildevej, Hvidovre | E50: 0 | F50: 6473 | H50: §11, stk. 4 (udvidelse) | I50: Godkendt | J50: Godtgjort at deres forsyningsområde eller vandmængder er udvidet, som følge af udvidelse af forsyningsområde eller håndterede vandmængder
A51: hofor spildevand koebenhavn as | B51: Spildevand | C51: s045 | D51: Byggemodninger | E51: 0 | F51: 299455 | H51: §11, stk. 4 (udvidelse) | I51: Godkendt | J51: Godtgjort at deres forsyningsområde eller vandmængder er udvidet, som følge af udvidelse af forsyningsområde eller håndterede vandmængder
A52: hjoerring vandselskab as | B52: Spildevand | D52: Håndtering af spildevandsslam og separatkloakeringer | H52: §11, stk. 4 (udvidelse) | I52: Afvist | J52: Opfylder ikke krav for tillæg.
A53: hofor vand koebenhavn as | B53: Drikkevand | C53: v091 | D53: Udvidelse af forsyningsområdet | E53: 0 | F53: 54382 | H53: §11, stk. 4 (udvidelse) | I53: Godkendt | J53: Godtgjort at deres forsyningsområde eller vandmængder er udvidet, som følge af udvidelse af forsyningsområde eller håndterede vandmængder
A54: horsens vand as | B54: Drikkevand | C54: v097 | D54: Udvidelse af forsyningsområde | E54: 656329 | F54: 234249 | H54: §11, stk. 4 (udvidelse) | I54: Godkendt | J54: Godtgjort at deres forsyningsområde eller vandmængder er udvidet, som følge af udvidelse af forsyningsområde eller håndterede vandmængder
A55: horsens vand as | B55: Spildevand | C55: s048 | D55: Udvidelse af forsyningsområdet | E55: 1571554 | F55: 2186793 | H55: §11, stk. 4 (udvidelse) | I55: Godkendt | J55: Godtgjort at deres forsyningsområde eller vandmængder er udvidet, som følge af udvidelse af forsyningsområde eller håndterede vandmængder
A56: htk vand as | B56: Drikkevand | C56: v098 | D56: Udvidelse af forsyningsområdet | E56: 235648 | F56: 29478 | H56: §11, stk. 4 (udvidelse) | I56: Godkendt | J56: Godtgjort at deres forsyningsområde eller vandmængder er udvidet, som følge af udvidelse af forsyningsområde eller håndterede vandmængder
A57: ikast brande spildevand as | B57: Spildevand | C57: s052 | D57: Byggemodninger i 2017 og 2018 | E57: 141100 | F57: 205535 | H57: §11, stk. 4 (udvidelse) | I57: Godkendt | J57: Godtgjort at deres forsyningsområde eller vandmængder er udvidet, som følge af udvidelse af forsyningsområde eller håndterede vandmængder
A58: jyllinge vandvaerk amba | B58: Drikkevand | C58: v110 | D58: Gundsømagle nødvand | F58: 0 | G58: 67868 | H58: §11, stk. 4 (udvidelse) | I58: Godkendt | J58: Godtgjort at deres forsyningsområde eller vandmængder er udvidet, som følge af udvidelse af forsyningsområde eller håndterede vandmængder
A59: kalundborg spildevandsanlaeg as | B59: Spildevand | C59: s056 | D59: Stejlhøj | E59: 0 | F59: 47150 | H59: §11, stk. 4 (udvidelse) | I59: Godkendt | J59: Godtgjort at deres forsyningsområde eller vandmængder er udvidet, som følge af udvidelse af forsyningsområde eller håndterede vandmængder
A60: koege afloeb as | B60: Spildevand | C60: s059 | D60: Byggemodninger | E60: 0 | F60: 374235 | H60: §11, stk. 4 (udvidelse) | I60: Godkendt | J60: Godtgjort at deres forsyningsområde eller vandmængder er udvidet, som følge af udvidelse af forsyningsområde eller håndterede vandmængder
A61: koege vand as | B61: Drikkevand | C61: v116 | D61: Køge Idrætspark og Søsvinget | E61: 0 | F61: 61573 | H61: §11, stk. 4 (udvidelse) | I61: Godkendt | J61: Godtgjort at deres forsyningsområde eller vandmængder er udvidet, som følge af udvidelse af forsyningsområde eller håndterede vandmængder
A62: lyngby taarbaek spildevand as | B62: Spildevand | C62: s064 | D62: Udvidelse af forsyningsområdet | E62: 15782 | F62: 139669 | H62: §11, stk. 4 (udvidelse) | I62: Godkendt | J62: Godtgjort at deres forsyningsområde eller vandmængder er udvidet, som følge af udvidelse af forsyningsområde eller håndterede vandmængder
A63: lyngby taarbaek vand as | B63: Drikkevand | C63: v126 | D63: Stikledninger for 2017 og 2018 | E63: 62178 | F63: 49713 | H63: §11, stk. 4 (udvidelse) | I63: Godkendt | J63: Godtgjort at deres forsyningsområde eller vandmængder er udvidet, som følge af udvidelse af forsyningsområde eller håndterede vandmængder
A64: middelfart spildevand as | B64: Spildevand | C64: s067 | D64: Byggemodninger | E64: 414325 | F64: 290585 | H64: §11, stk. 4 (udvidelse) | I64: Godkendt | J64: Godtgjort at deres forsyningsområde eller vandmængder er udvidet, som følge af udvidelse af forsyningsområde eller håndterede vandmængder
A65: nfs spildevand as | B65: Spildevand | C65: s071 | D65: Håndteret vandmængde | E65: 80035 | F65: 0 | H65: §11, stk. 4 (udvidelse) | I65: Godkendt | J65: Godtgjort at deres forsyningsområde eller vandmængder er udvidet, som følge af udvidelse af forsyningsområde eller håndterede vandmængder
A66: nfs spildevand as | B66: Spildevand | C66: s071 | D66: Udvidelse af område, Sommerbyen | E66: 67776 | F66: 4928 | H66: §11, stk. 4 (udvidelse) | I66: Godkendt | J66: Godtgjort at deres forsyningsområde eller vandmængder er udvidet, som følge af udvidelse af forsyningsområde eller håndterede vandmængder
A67: nk spildevand as | B67: Spildevand | C67: s072 | D67: Byggemodninger | E67: 60647 | F67: 107467 | H67: §11, stk. 4 (udvidelse) | I67: Godkendt | J67: Godtgjort at deres forsyningsområde eller vandmængder er udvidet, som følge af udvidelse af forsyningsområde eller håndterede vandmængder
A68: nk vand as | B68: Drikkevand | C68: v137 | D68: Byggemodninger | E68: 53023 | F68: 13132 | H68: §11, stk. 4 (udvidelse) | I68: Godkendt | J68: Godtgjort at deres forsyningsområde eller vandmængder er udvidet, som følge af udvidelse af forsyningsområde eller håndterede vandmængder
A69: noerre alslev vandvaerk | B69: Drikkevand | C69: v143 | D69: Vandforbrug i nyt statsfængsel | E69: 34332 | F69: 0 | H69: §11, stk. 4 (udvidelse) | I69: Godkendt | J69: Godtgjort at deres forsyningsområde eller vandmængder er udvidet, som følge af udvidelse af forsyningsområde eller håndterede vandmængder
A70: nyhuse vandvaerk amba | B70: Drikkevand | C70: v141 | D70: Nye tilslutninger | E70: 3119 | F70: 770 | H70: §11, stk. 4 (udvidelse) | I70: Godkendt | J70: Godtgjort at deres forsyningsområde eller vandmængder er udvidet, som følge af udvidelse af forsyningsområde eller håndterede vandmængder
A71: odder spildevand as | B71: Spildevand | C71: s073 | D71: Udvidelse af forsyningsområdet | E71: 11345 | F71: 15829 | H71: §11, stk. 4 (udvidelse) | I71: Godkendt | J71: Godtgjort at deres forsyningsområde eller vandmængder er udvidet, som følge af udvidelse af forsyningsområde eller håndterede vandmængder
A72: odder vandvaerk amba | B72: Drikkevand | C72: v144 | D72: Udvidelse af forsyningsområdet | E72: 0 | F72: 23228 | H72: §11, stk. 4 (udvidelse) | I72: Godkendt | J72: Godtgjort at deres forsyningsområde eller vandmængder er udvidet, som følge af udvidelse af forsyningsområde eller håndterede vandmængder
A73: odsherred spildevand as | B73: Spildevand | C73: s074 | D73: Kloakering af Vig Lyng og Lille Egebjerg | E73: 0 | F73: 2107759 | H73: §11, stk. 4 (udvidelse) | I73: Godkendt | J73: Godtgjort at deres forsyningsområde eller vandmængder er udvidet, som følge af udvidelse af forsyningsområde eller håndterede vandmængder
A74: ringkoebing skjern spildevand as | B74: Spildevand | C74: s077 | D74: Udvidelse af forsyningsområdet | E74: 29587 | F74: 260153 | H74: §11, stk. 4 (udvidelse) | I74: Godkendt | J74: Godtgjort at deres forsyningsområde eller vandmængder er udvidet, som følge af udvidelse af forsyningsområde eller håndterede vandmængder
A75: ringsted spildevand as | B75: Spildevand | C75: s079 | D75: Byudvikling og nykloakering | E75: 0 | F75: 1290596 | H75: §11, stk. 4 (udvidelse) | I75: Godkendt | J75: Godtgjort at deres forsyningsområde eller vandmængder er udvidet, som følge af udvidelse af forsyningsområde eller håndterede vandmængder
A76: ringsted vand as | B76: Drikkevand | C76: v154 | D76: Byggemodninger | E76: 131783 | F76: 21380 | H76: §11, stk. 4 (udvidelse) | I76: Godkendt | J76: Godtgjort at deres forsyningsområde eller vandmængder er udvidet, som følge af udvidelse af forsyningsområde eller håndterede vandmængder
A77: rudersdal forsyning as | B77: Drikkevand | C77: v156 | D77: Byggemodning Langhaven og nye tilslutninger | E77: 127543 | F77: 3193 | H77: §11, stk. 4 (udvidelse) | I77: Godkendt | J77: Godtgjort at deres forsyningsområde eller vandmængder er udvidet, som følge af udvidelse af forsyningsområde eller håndterede vandmængder
A78: rudersdal forsyning as | B78: Spildevand | C78: s081 | D78: Byggemodninger | E78: 334225 | F78: 61724 | H78: §11, stk. 4 (udvidelse) | I78: Godkendt | J78: Godtgjort at deres forsyningsområde eller vandmængder er udvidet, som følge af udvidelse af forsyningsområde eller håndterede vandmængder
A79: ry vandvaerk | B79: Drikkevand | C79: v157 | D79: Byggemodninger | E79: 0 | F79: 45636 | H79: §11, stk. 4 (udvidelse) | I79: Godkendt | J79: Godtgjort at deres forsyningsområde eller vandmængder er udvidet, som følge af udvidelse af forsyningsområde eller håndterede vandmængder
A80: samsoe spildevand as | B80: Spildevand | C80: s082 | D80: Udvidelse af forsyningsområdet | E80: 340362 | F80: 333489 | H80: §11, stk. 4 (udvidelse) | I80: Godkendt | J80: Godtgjort at deres forsyningsområde eller vandmængder er udvidet, som følge af udvidelse af forsyningsområde eller håndterede vandmængder
A81: silkeborg spildevand as | B81: Spildevand | C81: s083 | D81: Byggemodninger | E81: 0 | F81: 219890 | H81: §11, stk. 4 (udvidelse) | I81: Godkendt | J81: Godtgjort at deres forsyningsområde eller vandmængder er udvidet, som følge af udvidelse af forsyningsområde eller håndterede vandmængder
A82: sk spildevand as | B82: Spildevand | C82: s084 | D82: Byggemodninger | E82: 2720651 | F82: 0 | H82: §11, stk. 4 (udvidelse) | I82: Godkendt | J82: Godtgjort at deres forsyningsområde eller vandmængder er udvidet, som følge af udvidelse af forsyningsområde eller håndterede vandmængder
A83: skanderborg forsyningsvirksomhed as | B83: Spildevand | C83: s085 | D83: Byggemodninger | E83: 750539 | F83: 638934 | H83: §11, stk. 4 (udvidelse) | I83: Godkendt | J83: Godtgjort at deres forsyningsområde eller vandmængder er udvidet, som følge af udvidelse af forsyningsområde eller håndterede vandmængder
A84: skanderborg forsyningsvirksomhed as | B84: Drikkevand | C84: v166 | D84: Byggemodninger | E84: 0 | F84: 60930 | H84: §11, stk. 4 (udvidelse) | I84: Godkendt | J84: Godtgjort at deres forsyningsområde eller vandmængder er udvidet, som følge af udvidelse af forsyningsområde eller håndterede vandmængder
A85: skive vand as | B85: Drikkevand | C85: v167 | D85: Overtagelse af Nordvand Vandværk | E85: 0 | F85: 8300 | H85: §11, stk. 4 (udvidelse) | I85: Godkendt | J85: Godtgjort at deres forsyningsområde eller vandmængder er udvidet, som følge af udvidelse af forsyningsområde eller håndterede vandmængder
A86: skive vand as | B86: Spildevand | C86: s086 | D86: Spildevandskloakering og byggemodning | E86: 0 | F86: 88866 | H86: §11, stk. 4 (udvidelse) | I86: Godkendt | J86: Godtgjort at deres forsyningsområde eller vandmængder er udvidet, som følge af udvidelse af forsyningsområde eller håndterede vandmængder
A87: soenderborg spildevandsforsyning as | B87: Spildevand | C87: s093 | D87: Byggemodninger og kloakering i "åbent land" | E87: 0 | F87: 898319 | H87: §11, stk. 4 (udvidelse) | I87: Godkendt | J87: Godtgjort at deres forsyningsområde eller vandmængder er udvidet, som følge af udvidelse af forsyningsområde eller håndterede vandmængder
A88: soenderborg vandforsyning as | B88: Drikkevand | C88: v181 | D88: Nye kunder/udstykninger | E88: 0 | F88: 6244 | H88: §11, stk. 4 (udvidelse) | I88: Godkendt | J88: Godtgjort at deres forsyningsområde eller vandmængder er udvidet, som følge af udvidelse af forsyningsområde eller håndterede vandmængder
A89: solroed spildevand as | B89: Spildevand | C89: s087 | D89: Havdrup Vest | E89: 0 | F89: 69046 | H89: §11, stk. 4 (udvidelse) | I89: Godkendt | J89: Godtgjort at deres forsyningsområde eller vandmængder er udvidet, som følge af udvidelse af forsyningsområde eller håndterede vandmængder
A90: stevns spildevand as | B90: Spildevand | C90: s089 | D90: Udvidelse af forsyningsområdet | E90: 0 | F90: 105898 | H90: §11, stk. 4 (udvidelse) | I90: Godkendt | J90: Godtgjort at deres forsyningsområde eller vandmængder er udvidet, som følge af udvidelse af forsyningsområde eller håndterede vandmængder
A91: stoevring vandvaerk amba | B91: Drikkevand | C91: v176 | D91: Udvidelse af forsyningsområdet | F91: 0 | G91: 369056 | H91: §11, stk. 4 (udvidelse) | I91: Godkendt | J91: Godtgjort at deres forsyningsområde eller vandmængder er udvidet, som følge af udvidelse af forsyningsområde eller håndterede vandmængder
A92: struer forsyning spildevand as | B92: Spildevand | C92: s090 | D92: Spildevandsplanens opfyldelse og nyt kloakopland ved Vejrum | E92: 0 | F92: 162535 | H92: §11, stk. 4 (udvidelse) | I92: Godkendt | J92: Godtgjort at deres forsyningsområde eller vandmængder er udvidet, som følge af udvidelse af forsyningsområde eller håndterede vandmængder
A93: svinninge vandvaerk | B93: Drikkevand | C93: v179 | D93: Ny udstykning Ringstedvej | E93: 0 | F93: 1890 | H93: §11, stk. 4 (udvidelse) | I93: Godkendt | J93: Godtgjort at deres forsyningsområde eller vandmængder er udvidet, som følge af udvidelse af forsyningsområde eller håndterede vandmængder
A94: toender spildevand as | B94: Spildevand | C94: s096 | D94: Kloakeringsprojekter og byggemodninger | E94: 674589 | F94: 429164 | H94: §11, stk. 4 (udvidelse) | I94: Godkendt | J94: Godtgjort at deres forsyningsområde eller vandmængder er udvidet, som følge af udvidelse af forsyningsområde eller håndterede vandmængder
A95: trefor vand as | B95: Drikkevand | C95: v188 | D95: Nye udstykninger | E95: 167358 | F95: 758191 | H95: §11, stk. 4 (udvidelse) | I95: Godkendt | J95: Godtgjort at deres forsyningsområde eller vandmængder er udvidet, som følge af udvidelse af forsyningsområde eller håndterede vandmængder
A96: tune vandvaerk amba | B96: Drikkevand | C96: v189 | D96: Nødforsyning | E96: 0 | F96: 1019 | H96: §11, stk. 4 (udvidelse) | I96: Godkendt | J96: Godtgjort at deres forsyningsområde eller vandmængder er udvidet, som følge af udvidelse af forsyningsområde eller håndterede vandmængder
A97: tune vandvaerk amba | B97: Drikkevand | C97: v189 | D97: Tilslutninger | E97: 0 | F97: 3717 | H97: §11, stk. 4 (udvidelse) | I97: Godkendt | J97: Godtgjort at deres forsyningsområde eller vandmængder er udvidet, som følge af udvidelse af forsyningsområde eller håndterede vandmængder
A98: vand ballerup as | B98: Drikkevand | C98: v197 | D98: Byggemodning Dyvelåsen og nye tilslutninger | E98: 70831 | F98: 7777 | H98: §11, stk. 4 (udvidelse) | I98: Godkendt | J98: Godtgjort at deres forsyningsområde eller vandmængder er udvidet, som følge af udvidelse af forsyningsområde eller håndterede vandmængder
A99: vandcenter syd as | B99: Drikkevand | C99: v199 | D99: Erhvervsudstykning | E99: 0 | F99: 14644 | H99: §11, stk. 4 (udvidelse) | I99: Godkendt | J99: Godtgjort at deres forsyningsområde eller vandmængder er udvidet, som følge af udvidelse af forsyningsområde eller håndterede vandmængder
A100: vandcenter syd as | B100: Spildevand | C100: s099 | D100: Nyudstykninger og byggemodninger | E100: 0 | F100: 880090 | H100: §11, stk. 4 (udvidelse) | I100: Godkendt | J100: Godtgjort at deres forsyningsområde eller vandmængder er udvidet, som følge af udvidelse af forsyningsområde eller håndterede vandmængder
A101: vandfaellesskabet nordvestsjaelland | B101: Drikkevand | D101: Udvidelse på Knabstrup Vandværk | H101: §11, stk. 4 (udvidelse) | I101: Godkendt | J101: Godtgjort at deres forsyningsområde eller vandmængder er udvidet, som følge af udvidelse af forsyningsområde eller håndterede vandmængder
A102: vandmiljoe randers as | B102: Spildevand | C102: s075 | D102: Byggemodninger 2017 og 2018 | E102: 20873 | F102: 248628 | H102: §11, stk. 4 (udvidelse) | I102: Godkendt | J102: Godtgjort at deres forsyningsområde eller vandmængder er udvidet, som følge af udvidelse af forsyningsområde eller håndterede vandmængder
A103: vejen spildevand | B103: Spildevand | C103: s102 | D103: Udvidelse af forsyningsområdet | E103: 0 | F103: 707546 | H103: §11, stk. 4 (udvidelse) | I103: Godkendt | J103: Godtgjort at deres forsyningsområde eller vandmængder er udvidet, som følge af udvidelse af forsyningsområde eller håndterede vandmængder
A104: vejen vand | B104: Drikkevand | C104: v205 | D104: Byggemodninger og nye tilslutninger | E104: 6437 | F104: 17034 | H104: §11, stk. 4 (udvidelse) | I104: Godkendt | J104: Godtgjort at deres forsyningsområde eller vandmængder er udvidet, som følge af udvidelse af forsyningsområde eller håndterede vandmængder
A105: vejle spildevand as | B105: Spildevand | C105: s103 | D105: Byggemodninger | E105: 1073437 | F105: 643138 | H105: §11, stk. 4 (udvidelse) | I105: Godkendt | J105: Godtgjort at deres forsyningsområde eller vandmængder er udvidet, som følge af udvidelse af forsyningsområde eller håndterede vandmængder
A106: verdo vand as | B106: Drikkevand | C106: v206 | D106: Byggemodninger | E106: 1075146 | F106: 0 | H106: §11, stk. 4 (udvidelse) | I106: Godkendt | J106: Godtgjort at deres forsyningsområde eller vandmængder er udvidet, som følge af udvidelse af forsyningsområde eller håndterede vandmængder
A107: vestforsyning spildevand as | B107: Spildevand | C107: s104 | D107: Byggemodninger og nye tilslutninger | E107: 0 | F107: 439129 | H107: §11, stk. 4 (udvidelse) | I107: Godkendt | J107: Godtgjort at deres forsyningsområde eller vandmængder er udvidet, som følge af udvidelse af forsyningsområde eller håndterede vandmængder
A108: vordingborg spildevand as | B108: Spildevand | C108: s107 | D108: Sankelmarksvej | E108: 0 | F108: 6775 | H108: §11, stk. 4 (udvidelse) | I108: Godkendt | J108: Godtgjort at deres forsyningsområde eller vandmængder er udvidet, som følge af udvidelse af forsyningsområde eller håndterede vandmængder
A109: vordingborg vand as | B109: Drikkevand | C109: v212 | D109: Udvidelse af forsyningsområdet | E109: 0 | F109: 2720 | H109: §11, stk. 4 (udvidelse) | I109: Godkendt | J109: Godtgjort at deres forsyningsområde eller vandmængder er udvidet, som følge af udvidelse af forsyningsområde eller håndterede vandmængder
A110: aalborg kloak as | B110: Spildevand | C110: s109 | D110: Spildevandskloakering i Det Åbne Land | E110: 0 | F110: 5883 | H110: §11, stk. 4 (udvidelse) | I110: Godkendt | J110: Godtgjort at deres forsyningsområde eller vandmængder er udvidet, som følge af udvidelse af forsyningsområde eller håndterede vandmængder
A111: aarhus vand as | B111: Spildevand | C111: s110 | D111: Udvidelse af forsyningsområdet | E111: 882790 | F111: 1813095 | H111: §11, stk. 4 (udvidelse) | I111: Godkendt | J111: Godtgjort at deres forsyningsområde eller vandmængder er udvidet, som følge af udvidelse af forsyningsområde eller håndterede vandmængder
A112: aarhus vand as | B112: Drikkevand | C112: v220 | D112: Udvidelse af forsyningsområdet | E112: 773166 | F112: 257419 | H112: §11, stk. 4 (udvidelse) | I112: Godkendt | J112: Godtgjort at deres forsyningsområde eller vandmængder er udvidet, som følge af udvidelse af forsyningsområde eller håndterede vandmængder

Sheet §11 stk. 5 (medfinansiering)
A1: Selskab | B1: Forsyningsart | C1: FS ID | D1: Beskrivelse | E1: Driftsomkostninger | F1: Anlægsomkostninger | G1: Engangstillæg | H1: Type: §11 Stk. 1 (mål), §11, Stk. 2 (ledningsomlægning), §11, stk. 4 (udvidelse), §11 stk. 5 (medfinansiering), §11, stk. 6 (sup. Investering), §11, stk. 9 (vejbidrag), §13, stk. 2 (periodevise), §31, stk. 7 (vandindvinding) | I1: Godkendt/afvist | J1: Grund til godkendelse/ afvisning
A2: hofor spildevand koebenhavn as | B2: Spildevand | D2: Erik Ballings Vej | E2: 320000 | H2: §11 stk. 5 (medfinansiering) | I2: Godkendt | J2: Opfylder betingerne for tillæg.
A3: vejle spildevand as | B3: Spildevand | D3: Medfinansieringsprojektet Østbyen | E3: 1355982 | H3: §11 stk. 5 (medfinansiering) | I3: Godkendt | J3: Opfylder betingerne for tillæg.

Sheet §11 stk. 9 (vejbidrag)
A1: Selskab | B1: Forsyningsart | C1: FS ID | D1: Beskrivelse | E1: Driftsomkostninger | F1: Anlægsomkostninger | G1: Engangstillæg | H1: Type: §11 Stk. 1 (mål), §11, Stk. 2 (ledningsomlægning), §11, stk. 4 (udvidelse), §11 stk. 5 (medfinansiering), §11, stk. 6 (sup. Investering), §11, stk. 9 (vejbidrag), §13, stk. 2 (periodevise), §31, stk. 7 (vandindvinding) | I1: Godkendt/afvist | J1: Grund til godkendelse/ afvisning
A2: haderslev spildevand as | B2: Spildevand | D2: Tilbagebetaling af vejbidrag | G2: 4952000 | H2: §11, stk. 9 (vejbidrag) | I2: Godkendt | J2: Opfylder betingerne for tillæg.
A3: hofor spildevand hvidovre as | B3: Spildevand | D3: Tilbagebetaling af vejbidrag | G3: 4840926 | H3: §11, stk. 9 (vejbidrag) | I3: Godkendt | J3: Opfylder betingerne for tillæg.
A4: hofor spildevand koebenhavn as | B4: Spildevand | D4: Tilbagebetaling af vejbidrag | G4: 4524416 | H4: §11, stk. 9 (vejbidrag) | I4: Godkendt | J4: Opfylder betingerne for tillæg.
A5: ikast brande spildevand as | B5: Spildevand | D5: Tilbagebetaling af vejbidrag | G5: 1109313 | H5: §11, stk. 9 (vejbidrag) | I5: Godkendt | J5: Opfylder betingerne for tillæg.
A6: Ishoej spildevand as | B6: Spildevand | D6: Tilbagebetaling af vejbidrag | G6: 205800 | H6: §11, stk. 9 (vejbidrag) | I6: Godkendt | J6: Opfylder betingerne for tillæg.
A7: nk spildevand as | B7: Spildevand | D7: Tilbagebetaling af vejbidrag | G7: 1810197 | H7: §11, stk. 9 (vejbidrag) | I7: Godkendt | J7: Opfylder betingerne for tillæg.

Sheet § 13 stk. 2 (periodevise)
A1: Selskab | B1: Forsyningsart | C1: FS ID | D1: Beskrivelse | E1: Driftsomkostninger | F1: Anlægsomkostninger | G1: Engangstillæg | H1: Type: §11 Stk. 1 (mål), §11, Stk. 2 (ledningsomlægning), §11, stk. 4 (udvidelse), §11 stk. 5 (medfinansiering), §11, stk. 6 (sup. Investering), §11, stk. 9 (vejbidrag), §13, stk. 2 (periodevise), §31, stk. 7 (vandindvinding) | I1: Godkendt/afvist | J1: Grund til godkendelse/ afvisning
A2: andelsselskabet bredebro vandvaerk | B2: Spildevand | D2: udskiftning af filtre | H2: §13, stk. 2 (periodevise) | I2: Afvist | J2: Det er vores vurdering, at der er tale om almindelig ved ligeholdelse af filtre, der ikke kan sidestilles med oprensninger af slam eller regnvandsbede.
A3: din forsyning spildevand as | B3: Spildevand | C3: s015 | D3: Oprensning af regnvandsbassiner | E3: 123195 | F3: 0 | G3: 1231953 | H3: §13, stk. 2 (periodevise) | I3: Godkendt | J3: Opfylder betingerne for tillæg.
A4: energi viborg vand as | B4: Spildevand | C4: s014 | D4: Tømning af slambede | F4: 0 | G4: 8303603 | H4: §13, stk. 2 (periodevise) | I4: Godkendt | J4: Opfylder betingerne for tillæg.
A5: frederikshavn vand as | B5: Drikkevand | C5: v057 | D5: Fornyelse af indvindingstilladelser | E5: 21150 | F5: 0 | G5: 634514 | H5: §13, stk. 2 (periodevise) | I5: Godkendt | J5: Opfylder betingerne for tillæg.
A6: frederikssund spildevand as | B6: Spildevand | C6: s026 | D6: Oprensning af slambed 1 og 4 | E6: 100426 | F6: 0 | G6: 301278 | H6: §13, stk. 2 (periodevise) | I6: Godkendt | J6: Opfylder betingerne for tillæg.
A7: frederikssund spildevand as | B7: Spildevand | C7: s026 | D7: Oprensning af slambed 2 og 3 | E7: 95724 | F7: 0 | G7: 95724 | H7: §13, stk. 2 (periodevise) | I7: Godkendt | J7: Opfylder betingerne for tillæg.
A8: frederikssund spildevand as | B8: Spildevand | C8: s026 | D8: Oprensning af slambed 5, 6 og 7 | E8: 133699 | F8: 0 | H8: §13, stk. 2 (periodevise) | I8: Godkendt | J8: Opfylder betingerne for tillæg.
A9: glostrup spildevand as | B9: Spildevand | C9: s030 | D9: Oprensning af Bækrenden | E9: 40432 | F9: 0 | G9: 404318 | H9: §13, stk. 2 (periodevise) | I9: Godkendt | J9: Opfylder betingerne for tillæg.
A10: glostrup spildevand as | B10: Spildevand | C10: s030 | D10: Oprensning af Væveren | E10: 81138 | F10: 0 | G10: 811383 | H10: §13, stk. 2 (periodevise) | I10: Godkendt | J10: Opfylder betingerne for tillæg.
A11: gribvand spildevand as | B11: Spildevand | D11: Myg bekæmpelse | H11: §13, stk. 2 (periodevise) | I11: Afvist | J11: Opfylder ikke krav for tillæg.
A12: hofor spildevand albertslund as | B12: Spildevand | C12: s041 | D12: Oprensning af Bassin Ndr Glostrup | E12: 8928 | F12: 0 | G12: 178550 | H12: §13, stk. 2 (periodevise) | I12: Godkendt | J12: Opfylder betingerne for tillæg.
A13: hofor spildevand albertslund as | B13: Spildevand | C13: s041 | D13: Oprensning af Rådhussøen | E13: 68170 | F13: 0 | G13: 1363405 | H13: §13, stk. 2 (periodevise) | I13: Godkendt | J13: Opfylder betingerne for tillæg.
A14: hofor spildevand herlev as | B14: Spildevand | C14: s043 | D14: Lindsberg Søn. Tvedevangen 120 | E14: 13970 | F14: 0 | G14: 279398 | H14: §13, stk. 2 (periodevise) | I14: Godkendt | J14: Opfylder betingerne for tillæg.
A15: hofor spildevand herlev as | B15: Spildevand | C15: s043 | D15: Smedeholm 4 (Smededammen) | E15: 2502 | F15: 0 | G15: 50049 | H15: §13, stk. 2 (periodevise) | I15: Godkendt | J15: Opfylder betingerne for tillæg.
A16: hofor spildevand hvidovre as | B16: Spildevand | C16: s044 | D16: Oprensning Østern. Landkanal | E16: 5967 | F16: 0 | G16: 119337 | H16: §13, stk. 2 (periodevise) | I16: Godkendt | J16: Opfylder betingerne for tillæg.
A17: hofor spildevand vallensbaek as | B17: Spildevand | C17: s098 | D17: Oprensning af Lykkekrogen | E17: 10381 | F17: 0 | G17: 207612 | H17: §13, stk. 2 (periodevise) | I17: Godkendt | J17: Opfylder betingerne for tillæg.
A18: kalundborg spildevandsanlaeg as | B18: Spildevand | C18: s056 | D18: Oprensning af bassiner | E18: 14916 | F18: 0 | G18: 1491626 | H18: §13, stk. 2 (periodevise) | I18: Godkendt | J18: Opfylder betingerne for tillæg.
A19: odsherred spildevand as | B19: Spildevand | C19: s074 | D19: Oprensning af regnvandsbassiner | E19: 194305 | F19: 0 | G19: 2914570 | H19: §13, stk. 2 (periodevise) | I19: Godkendt | J19: Opfylder betingerne for tillæg.
A20: ringsted vand as | B20: Drikkevand | D20: Etablering af målerinstrumenter | H20: §13, stk. 2 (periodevise) | I20: Afvist | J20: Vi har lagt vægt på, at der er tale om almindelig løbende opdatering og fornyelse af jeres systemer, efterhånden som disse bliver forældet.
A21: ringsted vand as | B21: Drikkevand | D21: Indvendig coating af rentvandsbeholder | H21: §13, stk. 2 (periodevise) | I21: Afvist | J21: Vi har lagt vægt på, at der er tale om omkostninger til reparation af beholderen som følge af revnedannelser og ikke til selve rensningen og inspektionen af beholderen, som I foretager hvert 5. år.
A22: ringsted vand as | B22: Drikkevand | D22: Nedrivning gl. bygværk | H22: §13, stk. 2 (periodevise) | I22: Afvist | J22: På baggrund af jeres oplysninger, er det vores vurdering, at der ikke er tale om en periodevis driftsomkostning, da der er tale om en engangsomkostning.
A23: ringsted vand as | B23: Drikkevand | D23: Undersøgelse af hydrogeologisk påvirkning | H23: §13, stk. 2 (periodevise) | I23: Afvist | J23: Vi har lagt vægt på, at der er tale om almindelig driftsomkostninger, som alle vandselskaber i større eller mindre omfang har.
A24: skive vand as | B24: Drikkevand | D24: Screening af drikkevand for 410 pesticider | H24: §13, stk. 2 (periodevise) | I24: Afvist | J24: I har ydermere oplyst, at omkostningen afholdt i 2018 har været en engangsomkostning, der ikke forventes at være tilbagevendende.
A25: aarhus vand as | B25: Drikkevand | C25: v220 | D25: Indvindingstilladelser | E25: 4607 | F25: 0 | G25: 138214 | H25: §13, stk. 2 (periodevise) | I25: Godkendt | J25: Opfylder betingerne for tillæg.
A26: aarhus vand as | B26: Spildevand | C26: s110 | D26: Oprensning af regnvandsbassin | E26: 12007 | F26: 0 | G26: 1200729 | H26: §13, stk. 2 (periodevise) | I26: Godkendt | J26: Opfylder betingerne for tillæg.

Sheet §14 (justering af Ø.R.)
A1: Selskab | B1: Forsyningsart | C1: FS ID | D1: Beskrivelse | E1: Driftsomkostninger | F1: Anlægsomkostninger | G1: Engangstillæg | H1: Type: §11 Stk. 1 (mål), §11, Stk. 2 (ledningsomlægning), §11, stk. 4 (udvidelse), §11 stk. 5 (medfinansiering), §11, stk. 6 (sup. Investering), §11, stk. 9 (vejbidrag), §13, stk. 2 (periodevise), §31, stk. 7 (vandindvinding) | I1: Godkendt/afvist | J1: Grund til godkendelse/ afvisning
A2: faxe spildevandscenter as s019 kopi | B2: Spildevand | D2: Slamafvanding på Haslev Renseanlæg | H2: § 14 (Justering af den økonomiske ramme) | I2: Afvist | J2: Opfylder ikke krav for tillæg.
A3: maaloev rens as | B3: Spildevand | C3: s070 | D3: Garantiprovision | E3: 0 | F3: 4105 | G3: 25027 | H3: § 14 (Justering af den økonomiske ramme) | I3: Godkendt | J3: § 14 - Hvis kommunen havde opkrævet årligt, ville de finansielle omkostninger i jeres grundlag have været højere, fordi de ville have indeholdt omkostninger til garantiprovision.
A4: vejen renseanlaeg | B4: Spildevand | D4: Garantiprovision | H4: § 14 (Justering af den økonomiske ramme) | I4: Afvist | J4: § 14 - Det er vores vurdering, at omkostningerne ikke er væsentlige set i for- hold til jeres økonomiske ramme for 2018.
A5: vejen spildevand | B5: Spildevand | D5: Garantiprovision | H5: § 14 (Justering af den økonomiske ramme) | I5: Afvist | J5: § 14 - Det er vores vurdering, at omkostningerne ikke er væsentlige set i for- hold til jeres økonomiske ramme for 2018.
A6: vejen vand | B6: Drikkevand | D6: Garantiprovision | H6: § 14 (Justering af den økonomiske ramme) | I6: Afvist | J6: § 14 - Det er vores vurdering, at omkostningerne ikke er væsentlige set i for- hold til jeres økonomiske ramme for 2018.
A7: vejen vand | B7: Drikkevand | D7: justering af den økonomiske ramme | H7: § 14 (Justering af den økonomiske ramme) | I7: Afvist | J7: § 14 - Det er vores vurdering, at der ikke sker en væsentligt ændring i jeres aktiviteter eller omkostning.
A8: aarhus vand as | B8: Spildevand | C8: s110 | D8: Energiproduktion på Egå Renseanlæg | E8: 2354265 | F8: 0 | H8: § 18 stk. 4 | I8: Godkendt | J8: Opfylder betingerne for tillæg.

Sheet § 31 stk. 7 (vandindvinding)
A1: Selskab | B1: Forsyningsart | C1: FS ID | D1: Beskrivelse | E1: Driftsomkostninger | F1: Anlægsomkostninger | G1: Engangstillæg | H1: Type: §11 Stk. 1 (mål), §11, Stk. 2 (ledningsomlægning), §11, stk. 4 (udvidelse), §11 stk. 5 (medfinansiering), §11, stk. 6 (sup. Investering), §11, stk. 9 (vejbidrag), §13, stk. 2 (periodevise), §31, stk. 7 (vandindvinding) | I1: Godkendt/afvist | J1: Grund til godkendelse/ afvisning
A2: hofor vand koebenhavn as | B2: Drikkevand | C2: v091 | D2: Aktiviteter afledt af indvindingstilladelser | E2: 2028690 | F2: 0 | H2: §31, stk. 7 (vandindvinding) | I2: Godkendt
A3: jyllinge vandvaerk amba | B3: Drikkevand | D3: Beskyttelseszoner | H3: §31, stk. 7 (vandindvinding) | I3: Afvist | J3: Da der ikke foretages afskrivninger på jord, kan der ikke ydes tillæg for omkostninger afholdt til køb af jord, hvilket også fremgår af forhåndsgodkendelsen.
A4: jyllinge vandvaerk amba | B4: Drikkevand | C4: v110 | D4: Bundfældningsbassin | E4: 30228 | F4: 0 | H4: §31, stk. 7 (vandindvinding) | I4: Godkendt | J4: Opfylder betingerne for tillæg.
A5: loegten skoedstrup vandvaerk amba | B5: Drikkevand | C5: v129 | D5: Etablering af undersøgelsesboring (Vosnæs Skov) | E5: 0 | F5: 92620 | H5: §31, stk. 7 (vandindvinding) | I5: Godkendt | J5: Opfylder betingerne for tillæg.

Sheet Tabeller
A1: ALLE
A2: Tillægstype | B2: Ansøgninger | C2: Andel godkendte | D2: Andel Afvist | E2: Årlige tillæg | F2: Engangstillæg
A3: §11 Stk. 1 (mål) | B3: =COUNTIFS('Alle tillæg'!$H$4:$H$584,Tabeller!A3) -> 66 | C3: =COUNTIFS('Alle tillæg'!$H$4:$H$584,Tabeller!A3,'Alle tillæg'!$I$4:$I$584,"Godkendt")/B3 -> 0.7121212121 | D3: =COUNTIFS('Alle tillæg'!$H$4:$H$584,Tabeller!A3,'Alle tillæg'!$I$4:$I$584,"Afvist ")/B3 -> 0.2878787879 | E3: =SUMIFS('Alle tillæg'!$E$4:$E$584,'Alle tillæg'!$H$4:$H$584,Tabeller!A3)+SUMIFS('Alle tillæg'!$F$4:$F$584,'Alle tillæg'!$H$4:$H$584,Tabeller!A3) -> 45139189 | F3: =SUMIFS('Alle tillæg'!$G$4:$G$584,'Alle tillæg'!$H$4:$H$584,Tabeller!A3) -> 10478810
A4: §11, Stk. 2 (ledningsomlægning) | B4: =COUNTIFS('Alle tillæg'!$H$4:$H$584,Tabeller!A4) -> 29 | C4: =COUNTIFS('Alle tillæg'!$H$4:$H$584,Tabeller!A4,'Alle tillæg'!$I$4:$I$584,"Godkendt")/B4 -> 0.9655172414 | D4: =COUNTIFS('Alle tillæg'!$H$4:$H$584,Tabeller!A4,'Alle tillæg'!$I$4:$I$584,"Afvist ")/B4 -> 0.03448275862 | E4: =SUMIFS('Alle tillæg'!$E$4:$E$584,'Alle tillæg'!$H$4:$H$584,Tabeller!A4)+SUMIFS('Alle tillæg'!$F$4:$F$584,'Alle tillæg'!$H$4:$H$584,Tabeller!A4) -> 1705101 | F4: =SUMIFS('Alle tillæg'!$G$4:$G$584,'Alle tillæg'!$H$4:$H$584,Tabeller!A4) -> 862743
A5: §11, stk. 4 (udvidelse) | B5: =COUNTIFS('Alle tillæg'!$H$4:$H$584,Tabeller!A5) -> 111 | C5: =COUNTIFS('Alle tillæg'!$H$4:$H$584,Tabeller!A5,'Alle tillæg'!$I$4:$I$584,"Godkendt")/B5 -> 0.990990991 | D5: =COUNTIFS('Alle tillæg'!$H$4:$H$584,Tabeller!A5,'Alle tillæg'!$I$4:$I$584,"Afvist ")/B5 -> 0.009009009009 | E5: =SUMIFS('Alle tillæg'!$E$4:$E$584,'Alle tillæg'!$H$4:$H$584,Tabeller!A5)+SUMIFS('Alle tillæg'!$F$4:$F$584,'Alle tillæg'!$H$4:$H$584,Tabeller!A5) -> 44223882.8 | F5: =SUMIFS('Alle tillæg'!$G$4:$G$584,'Alle tillæg'!$H$4:$H$584,Tabeller!A5) -> 748055.6
A6: §11 stk. 5 (medfinansiering) | B6: =COUNTIFS('Alle tillæg'!$H$4:$H$584,Tabeller!A6) -> 2 | C6: =COUNTIFS('Alle tillæg'!$H$4:$H$584,Tabeller!A6,'Alle tillæg'!$I$4:$I$584,"Godkendt")/B6 -> 1 | D6: =COUNTIFS('Alle tillæg'!$H$4:$H$584,Tabeller!A6,'Alle tillæg'!$I$4:$I$584,"Afvist ")/B6 -> 0 | E6: =SUMIFS('Alle tillæg'!$E$4:$E$584,'Alle tillæg'!$H$4:$H$584,Tabeller!A6)+SUMIFS('Alle tillæg'!$F$4:$F$584,'Alle tillæg'!$H$4:$H$584,Tabeller!A6) -> 1675982 | F6: =SUMIFS('Alle tillæg'!$G$4:$G$584,'Alle tillæg'!$H$4:$H$584,Tabeller!A6) -> 0
A7: §11, stk. 6 (sup. Investering) | B7: =COUNTIFS('Alle tillæg'!$H$4:$H$584,Tabeller!A7) -> 0 | C7: 0 | D7: 0 | E7: =SUMIFS('Alle tillæg'!$E$4:$E$584,'Alle tillæg'!$H$4:$H$584,Tabeller!A7)+SUMIFS('Alle tillæg'!$F$4:$F$584,'Alle tillæg'!$H$4:$H$584,Tabeller!A7) -> 0 | F7: =SUMIFS('Alle tillæg'!$G$4:$G$584,'Alle tillæg'!$H$4:$H$584,Tabeller!A7) -> 0
A8: §11, stk. 9 (vejbidrag) | B8: =COUNTIFS('Alle tillæg'!$H$4:$H$584,Tabeller!A8) -> 6 | C8: =COUNTIFS('Alle tillæg'!$H$4:$H$584,Tabeller!A8,'Alle tillæg'!$I$4:$I$584,"Godkendt")/B8 -> 1 | D8: =COUNTIFS('Alle tillæg'!$H$4:$H$584,Tabeller!A8,'Alle tillæg'!$I$4:$I$584,"Afvist ")/B8 -> 0 | E8: =SUMIFS('Alle tillæg'!$E$4:$E$584,'Alle tillæg'!$H$4:$H$584,Tabeller!A8)+SUMIFS('Alle tillæg'!$F$4:$F$584,'Alle tillæg'!$H$4:$H$584,Tabeller!A8) -> 0 | F8: =SUMIFS('Alle tillæg'!$G$4:$G$584,'Alle tillæg'!$H$4:$H$584,Tabeller!A8) -> 17442652
A9: §13, stk. 2 (periodevise) | B9: =COUNTIFS('Alle tillæg'!$H$4:$H$584,Tabeller!A9) -> 25 | C9: =COUNTIFS('Alle tillæg'!$H$4:$H$584,Tabeller!A9,'Alle tillæg'!$I$4:$I$584,"Godkendt")/B9 -> 0.72 | D9: =COUNTIFS('Alle tillæg'!$H$4:$H$584,Tabeller!A9,'Alle tillæg'!$I$4:$I$584,"Afvist ")/B9 -> 0.28 | E9: =SUMIFS('Alle tillæg'!$E$4:$E$584,'Alle tillæg'!$H$4:$H$584,Tabeller!A9)+SUMIFS('Alle tillæg'!$F$4:$F$584,'Alle tillæg'!$H$4:$H$584,Tabeller!A9) -> 931517 | F9: =SUMIFS('Alle tillæg'!$G$4:$G$584,'Alle tillæg'!$H$4:$H$584,Tabeller!A9) -> 19726263
A10: §31, stk. 7 (vandindvinding) | B10: =COUNTIFS('Alle tillæg'!$H$4:$H$584,Tabeller!A10) -> 4 | C10: =COUNTIFS('Alle tillæg'!$H$4:$H$584,Tabeller!A10,'Alle tillæg'!$I$4:$I$584,"Godkendt")/B10 -> 0.75 | D10: =COUNTIFS('Alle tillæg'!$H$4:$H$584,Tabeller!A10,'Alle tillæg'!$I$4:$I$584,"Afvist ")/B10 -> 0.25 | E10: =SUMIFS('Alle tillæg'!$E$4:$E$584,'Alle tillæg'!$H$4:$H$584,Tabeller!A10)+SUMIFS('Alle tillæg'!$F$4:$F$584,'Alle tillæg'!$H$4:$H$584,Tabeller!A10) -> 2151538 | F10: =SUMIFS('Alle tillæg'!$G$4:$G$584,'Alle tillæg'!$H$4:$H$584,Tabeller!A10) -> 0
A11: § 14 (Justering af den økonomiske ramme) | B11: =COUNTIFS('Alle tillæg'!$H$4:$H$584,Tabeller!A11) -> 6 | C11: =COUNTIFS('Alle tillæg'!$H$4:$H$584,Tabeller!A11,'Alle tillæg'!$I$4:$I$584,"Godkendt")/B11 -> 0.1666666667 | D11: =COUNTIFS('Alle tillæg'!$H$4:$H$584,Tabeller!A11,'Alle tillæg'!$I$4:$I$584,"Afvist ")/B11 -> 0.8333333333 | E11: =SUMIFS('Alle tillæg'!$E$4:$E$584,'Alle tillæg'!$H$4:$H$584,Tabeller!A11)+SUMIFS('Alle tillæg'!$F$4:$F$584,'Alle tillæg'!$H$4:$H$584,Tabeller!A11) -> 4105 | F11: =SUMIFS('Alle tillæg'!$G$4:$G$584,'Alle tillæg'!$H$4:$H$584,Tabeller!A11) -> 25027
A12: § 18 stk. 4 | B12: =COUNTIFS('Alle tillæg'!$H$4:$H$584,Tabeller!A12) -> 1 | C12: =COUNTIFS('Alle tillæg'!$H$4:$H$584,Tabeller!A12,'Alle tillæg'!$I$4:$I$584,"Godkendt")/B12 -> 1 | D12: =COUNTIFS('Alle tillæg'!$H$4:$H$584,Tabeller!A12,'Alle tillæg'!$I$4:$I$584,"Afvist ")/B12 -> 0 | E12: =SUMIFS('Alle tillæg'!$E$4:$E$584,'Alle tillæg'!$H$4:$H$584,Tabeller!A12)+SUMIFS('Alle tillæg'!$F$4:$F$584,'Alle tillæg'!$H$4:$H$584,Tabeller!A12) -> 2354265 | F12: =SUMIFS('Alle tillæg'!$G$4:$G$584,'Alle tillæg'!$H$4:$H$584,Tabeller!A12) -> 0
A13: SUM | B13: =SUM(B3:B12) -> 250 | E13: =SUM(E3:E12) -> 98185579.8 | F13: =SUM(F3:F12) -> 49283550.6
A14: Tillæg til anlægsprojekter igangsat før | B14: =COUNTIFS('Alle tillæg'!$H$4:$H$584,Tabeller!C14) -> 331 | C14: 1. Marts 2016 | E14: =SUMIFS('Alle tillæg'!$F$2:$F$585,'Alle tillæg'!$H$2:$H$585,Tabeller!C14) -> 85382988.93
A16: Spildevand
A17: Tillægstype | B17: Ansøgninger | C17: Andel godkendte | D17: Andel Afvist | E17: Årlige tillæg 2020 | F17: Engangstillæg
A18: §11 Stk. 1 (mål) | B18: =COUNTIFS('Alle tillæg'!$H$4:$H$584,Tabeller!A18,'Alle tillæg'!$B$4:$B$584,Tabeller!$A$16) -> 33 | C18: =COUNTIFS('Alle tillæg'!$H$4:$H$584,Tabeller!A18,'Alle tillæg'!$I$4:$I$584,"Godkendt",'Alle tillæg'!$B$4:$B$584,Tabeller!$A$16)/B18 -> 0.6666666667 | D18: =COUNTIFS('Alle tillæg'!$H$4:$H$584,Tabeller!A18,'Alle tillæg'!$I$4:$I$584,"Afvist ",'Alle tillæg'!$B$4:$B$584,Tabeller!$A$16)/B18 -> 0.3333333333 | E18: =SUMIFS('Alle tillæg'!$E$4:$E$584,'Alle tillæg'!$B$4:$B$584,Tabeller!$A$16,'Alle tillæg'!$H$4:$H$584,Tabeller!A18)+SUMIFS('Alle tillæg'!$F$4:$F$584,'Alle tillæg'!$B$4:$B$584,Tabeller!$A$16,'Alle tillæg'!$H$4:$H$584,Tabeller!A18) -> 33625207 | F18: =SUMIFS('Alle tillæg'!$G$4:$G$584,'Alle tillæg'!$B$4:$B$584,Tabeller!$A$16,'Alle tillæg'!$H$4:$H$584,Tabeller!A18) -> 5812745
A19: §11, Stk. 2 (ledningsomlægning) | B19: =COUNTIFS('Alle tillæg'!$H$4:$H$584,Tabeller!A19,'Alle tillæg'!$B$4:$B$584,Tabeller!$A$16) -> 14 | C19: =COUNTIFS('Alle tillæg'!$H$4:$H$584,Tabeller!A19,'Alle tillæg'!$I$4:$I$584,"Godkendt",'Alle tillæg'!$B$4:$B$584,Tabeller!$A$16)/B19 -> 0.9285714286 | D19: =COUNTIFS('Alle tillæg'!$H$4:$H$584,Tabeller!A19,'Alle tillæg'!$I$4:$I$584,"Afvist ",'Alle tillæg'!$B$4:$B$584,Tabeller!$A$16)/B19 -> 0.07142857143 | E19: =SUMIFS('Alle tillæg'!$E$4:$E$584,'Alle tillæg'!$B$4:$B$584,Tabeller!$A$16,'Alle tillæg'!$H$4:$H$584,Tabeller!A19)+SUMIFS('Alle tillæg'!$F$4:$F$584,'Alle tillæg'!$B$4:$B$584,Tabeller!$A$16,'Alle tillæg'!$H$4:$H$584,Tabeller!A19) -> 1166806 | F19: =SUMIFS('Alle tillæg'!$G$4:$G$584,'Alle tillæg'!$B$4:$B$584,Tabeller!$A$16,'Alle tillæg'!$H$4:$H$584,Tabeller!A19) -> 0
A20: §11, stk. 4 (udvidelse) | B20: =COUNTIFS('Alle tillæg'!$H$4:$H$584,Tabeller!A20,'Alle tillæg'!$B$4:$B$584,Tabeller!$A$16) -> 59 | C20: =COUNTIFS('Alle tillæg'!$H$4:$H$584,Tabeller!A20,'Alle tillæg'!$I$4:$I$584,"Godkendt",'Alle tillæg'!$B$4:$B$584,Tabeller!$A$16)/B20 -> 0.9830508475 | D20: =COUNTIFS('Alle tillæg'!$H$4:$H$584,Tabeller!A20,'Alle tillæg'!$I$4:$I$584,"Afvist ",'Alle tillæg'!$B$4:$B$584,Tabeller!$A$16)/B20 -> 0.01694915254 | E20: =SUMIFS('Alle tillæg'!$E$4:$E$584,'Alle tillæg'!$B$4:$B$584,Tabeller!$A$16,'Alle tillæg'!$H$4:$H$584,Tabeller!A20)+SUMIFS('Alle tillæg'!$F$4:$F$584,'Alle tillæg'!$B$4:$B$584,Tabeller!$A$16,'Alle tillæg'!$H$4:$H$584,Tabeller!A20) -> 35764640.8 | F20: =SUMIFS('Alle tillæg'!$G$4:$G$584,'Alle tillæg'!$B$4:$B$584,Tabeller!$A$16,'Alle tillæg'!$H$4:$H$584,Tabeller!A20) -> 110334.6
A21: §11 stk. 5 (medfinansiering) | B21: =COUNTIFS('Alle tillæg'!$H$4:$H$584,Tabeller!A21,'Alle tillæg'!$B$4:$B$584,Tabeller!$A$16) -> 2 | C21: =COUNTIFS('Alle tillæg'!$H$4:$H$584,Tabeller!A21,'Alle tillæg'!$I$4:$I$584,"Godkendt",'Alle tillæg'!$B$4:$B$584,Tabeller!$A$16)/B21 -> 1 | D21: =COUNTIFS('Alle tillæg'!$H$4:$H$584,Tabeller!A21,'Alle tillæg'!$I$4:$I$584,"Afvist ",'Alle tillæg'!$B$4:$B$584,Tabeller!$A$16)/B21 -> 0 | E21: =SUMIFS('Alle tillæg'!$E$4:$E$584,'Alle tillæg'!$B$4:$B$584,Tabeller!$A$16,'Alle tillæg'!$H$4:$H$584,Tabeller!A21)+SUMIFS('Alle tillæg'!$F$4:$F$584,'Alle tillæg'!$B$4:$B$584,Tabeller!$A$16,'Alle tillæg'!$H$4:$H$584,Tabeller!A21) -> 1675982 | F21: =SUMIFS('Alle tillæg'!$G$4:$G$584,'Alle tillæg'!$B$4:$B$584,Tabeller!$A$16,'Alle tillæg'!$H$4:$H$584,Tabeller!A21) -> 0
A22: §11, stk. 6 (sup. Investering) | B22: =COUNTIFS('Alle tillæg'!$H$4:$H$584,Tabeller!A22,'Alle tillæg'!$B$4:$B$584,Tabeller!$A$16) -> 0 | D22: 0 | E22: =SUMIFS('Alle tillæg'!$E$4:$E$584,'Alle tillæg'!$B$4:$B$584,Tabeller!$A$16,'Alle tillæg'!$H$4:$H$584,Tabeller!A22)+SUMIFS('Alle tillæg'!$F$4:$F$584,'Alle tillæg'!$B$4:$B$584,Tabeller!$A$16,'Alle tillæg'!$H$4:$H$584,Tabeller!A22) -> 0 | F22: =SUMIFS('Alle tillæg'!$G$4:$G$584,'Alle tillæg'!$B$4:$B$584,Tabeller!$A$16,'Alle tillæg'!$H$4:$H$584,Tabeller!A22) -> 0
A23: §11, stk. 9 (vejbidrag) | B23: =COUNTIFS('Alle tillæg'!$H$4:$H$584,Tabeller!A23,'Alle tillæg'!$B$4:$B$584,Tabeller!$A$16) -> 6 | C23: =COUNTIFS('Alle tillæg'!$H$4:$H$584,Tabeller!A23,'Alle tillæg'!$I$4:$I$584,"Godkendt",'Alle tillæg'!$B$4:$B$584,Tabeller!$A$16)/B23 -> 1 | D23: =COUNTIFS('Alle tillæg'!$H$4:$H$584,Tabeller!A23,'Alle tillæg'!$I$4:$I$584,"Afvist ",'Alle tillæg'!$B$4:$B$584,Tabeller!$A$16)/B23 -> 0 | E23: =SUMIFS('Alle tillæg'!$E$4:$E$584,'Alle tillæg'!$B$4:$B$584,Tabeller!$A$16,'Alle tillæg'!$H$4:$H$584,Tabeller!A23)+SUMIFS('Alle tillæg'!$F$4:$F$584,'Alle tillæg'!$B$4:$B$584,Tabeller!$A$16,'Alle tillæg'!$H$4:$H$584,Tabeller!A23) -> 0 | F23: =SUMIFS('Alle tillæg'!$G$4:$G$584,'Alle tillæg'!$B$4:$B$584,Tabeller!$A$16,'Alle tillæg'!$H$4:$H$584,Tabeller!A23) -> 17442652
A24: §13, stk. 2 (periodevise) | B24: =COUNTIFS('Alle tillæg'!$H$4:$H$584,Tabeller!A24,'Alle tillæg'!$B$4:$B$584,Tabeller!$A$16) -> 18 | C24: =COUNTIFS('Alle tillæg'!$H$4:$H$584,Tabeller!A24,'Alle tillæg'!$I$4:$I$584,"Godkendt",'Alle tillæg'!$B$4:$B$584,Tabeller!$A$16)/B24 -> 0.8888888889 | D24: =COUNTIFS('Alle tillæg'!$H$4:$H$584,Tabeller!A24,'Alle tillæg'!$I$4:$I$584,"Afvist ",'Alle tillæg'!$B$4:$B$584,Tabeller!$A$16)/B24 -> 0.1111111111 | E24: =SUMIFS('Alle tillæg'!$E$4:$E$584,'Alle tillæg'!$B$4:$B$584,Tabeller!$A$16,'Alle tillæg'!$H$4:$H$584,Tabeller!A24)+SUMIFS('Alle tillæg'!$F$4:$F$584,'Alle tillæg'!$B$4:$B$584,Tabeller!$A$16,'Alle tillæg'!$H$4:$H$584,Tabeller!A24) -> 905760 | F24: =SUMIFS('Alle tillæg'!$G$4:$G$584,'Alle tillæg'!$B$4:$B$584,Tabeller!$A$16,'Alle tillæg'!$H$4:$H$584,Tabeller!A24) -> 18953535
A25: §31, stk. 7 (vandindvinding) | B25: =COUNTIFS('Alle tillæg'!$H$4:$H$584,Tabeller!A25,'Alle tillæg'!$B$4:$B$584,Tabeller!$A$16) -> 0 | D25: 0 | E25: =SUMIFS('Alle tillæg'!$E$4:$E$584,'Alle tillæg'!$B$4:$B$584,Tabeller!$A$16,'Alle tillæg'!$H$4:$H$584,Tabeller!A25)+SUMIFS('Alle tillæg'!$F$4:$F$584,'Alle tillæg'!$B$4:$B$584,Tabeller!$A$16,'Alle tillæg'!$H$4:$H$584,Tabeller!A25) -> 0 | F25: =SUMIFS('Alle tillæg'!$G$4:$G$584,'Alle tillæg'!$B$4:$B$584,Tabeller!$A$16,'Alle tillæg'!$H$4:$H$584,Tabeller!A25) -> 0
A26: § 14 (Justering af den økonomiske ramme) | B26: =COUNTIFS('Alle tillæg'!$H$4:$H$584,Tabeller!A26,'Alle tillæg'!$B$4:$B$584,Tabeller!$A$16) -> 4 | C26: =COUNTIFS('Alle tillæg'!$H$4:$H$584,Tabeller!A26,'Alle tillæg'!$I$4:$I$584,"Godkendt",'Alle tillæg'!$B$4:$B$584,Tabeller!$A$16)/B26 -> 0.25 | D26: =COUNTIFS('Alle tillæg'!$H$4:$H$584,Tabeller!A26,'Alle tillæg'!$I$4:$I$584,"Afvist ",'Alle tillæg'!$B$4:$B$584,Tabeller!$A$16)/B26 -> 0.75 | E26: =SUMIFS('Alle tillæg'!$E$4:$E$584,'Alle tillæg'!$B$4:$B$584,Tabeller!$A$16,'Alle tillæg'!$H$4:$H$584,Tabeller!A26)+SUMIFS('Alle tillæg'!$F$4:$F$584,'Alle tillæg'!$B$4:$B$584,Tabeller!$A$16,'Alle tillæg'!$H$4:$H$584,Tabeller!A26) -> 4105 | F26: =SUMIFS('Alle tillæg'!$G$4:$G$584,'Alle tillæg'!$B$4:$B$584,Tabeller!$A$16,'Alle tillæg'!$H$4:$H$584,Tabeller!A26) -> 25027
A27: § 18 stk. 4 | B27: =COUNTIFS('Alle tillæg'!$H$4:$H$584,Tabeller!A27,'Alle tillæg'!$B$4:$B$584,Tabeller!$A$16) -> 1 | C27: =COUNTIFS('Alle tillæg'!$H$4:$H$584,Tabeller!A27,'Alle tillæg'!$I$4:$I$584,"Godkendt",'Alle tillæg'!$B$4:$B$584,Tabeller!$A$16)/B27 -> 1 | D27: =COUNTIFS('Alle tillæg'!$H$4:$H$584,Tabeller!A27,'Alle tillæg'!$I$4:$I$584,"Afvist ",'Alle tillæg'!$B$4:$B$584,Tabeller!$A$16)/B27 -> 0 | E27: =SUMIFS('Alle tillæg'!$E$4:$E$584,'Alle tillæg'!$B$4:$B$584,Tabeller!$A$16,'Alle tillæg'!$H$4:$H$584,Tabeller!A27)+SUMIFS('Alle tillæg'!$F$4:$F$584,'Alle tillæg'!$B$4:$B$584,Tabeller!$A$16,'Alle tillæg'!$H$4:$H$584,Tabeller!A27) -> 2354265 | F27: =SUMIFS('Alle tillæg'!$G$4:$G$584,'Alle tillæg'!$B$4:$B$584,Tabeller!$A$16,'Alle tillæg'!$H$4:$H$584,Tabeller!A27) -> 0
E29: =SUM(E18:E27) -> 75496765.8 | F29: =SUM(F18:F27) -> 42344293.6
A31: Drikkevand
A32: Tillægstype | B32: Ansøgninger | C32: Andel godkendte | D32: Andel Afvist | E32: Årlige tillæg 2020 | F32: Engangstillæg
A33: §11 Stk. 1 (mål) | B33: =COUNTIFS('Alle tillæg'!$H$4:$H$584,Tabeller!A33,'Alle tillæg'!$B$4:$B$584,Tabeller!$A$31) -> 33 | C33: =COUNTIFS('Alle tillæg'!$H$4:$H$584,Tabeller!A33,'Alle tillæg'!$I$4:$I$584,"Godkendt",'Alle tillæg'!$B$4:$B$584,Tabeller!$A$31)/B33 -> 0.7575757576 | D33: =COUNTIFS('Alle tillæg'!$H$4:$H$584,Tabeller!A33,'Alle tillæg'!$I$4:$I$584,"Afvist ",'Alle tillæg'!$B$4:$B$584,Tabeller!$A$31)/B33 -> 0.2424242424 | E33: =SUMIFS('Alle tillæg'!$E$4:$E$584,'Alle tillæg'!$B$4:$B$584,Tabeller!$A$31,'Alle tillæg'!$H$4:$H$584,Tabeller!A33)+SUMIFS('Alle tillæg'!$F$4:$F$584,'Alle tillæg'!$B$4:$B$584,Tabeller!$A$31,'Alle tillæg'!$H$4:$H$584,Tabeller!A33) -> 11513982 | F33: =SUMIFS('Alle tillæg'!$G$4:$G$584,'Alle tillæg'!$B$4:$B$584,Tabeller!$A$31,'Alle tillæg'!$H$4:$H$584,Tabeller!A33) -> 4666065
A34: §11, Stk. 2 (ledningsomlægning) | B34: =COUNTIFS('Alle tillæg'!$H$4:$H$584,Tabeller!A34,'Alle tillæg'!$B$4:$B$584,Tabeller!$A$31) -> 15 | C34: =COUNTIFS('Alle tillæg'!$H$4:$H$584,Tabeller!A34,'Alle tillæg'!$I$4:$I$584,"Godkendt",'Alle tillæg'!$B$4:$B$584,Tabeller!$A$31)/B34 -> 1 | D34: =COUNTIFS('Alle tillæg'!$H$4:$H$584,Tabeller!A34,'Alle tillæg'!$I$4:$I$584,"Afvist ",'Alle tillæg'!$B$4:$B$584,Tabeller!$A$31)/B34 -> 0 | E34: =SUMIFS('Alle tillæg'!$E$4:$E$584,'Alle tillæg'!$B$4:$B$584,Tabeller!$A$31,'Alle tillæg'!$H$4:$H$584,Tabeller!A34)+SUMIFS('Alle tillæg'!$F$4:$F$584,'Alle tillæg'!$B$4:$B$584,Tabeller!$A$31,'Alle tillæg'!$H$4:$H$584,Tabeller!A34) -> 538295 | F34: =SUMIFS('Alle tillæg'!$G$4:$G$584,'Alle tillæg'!$B$4:$B$584,Tabeller!$A$31,'Alle tillæg'!$H$4:$H$584,Tabeller!A34) -> 862743
A35: §11, stk. 4 (udvidelse) | B35: =COUNTIFS('Alle tillæg'!$H$4:$H$584,Tabeller!A35,'Alle tillæg'!$B$4:$B$584,Tabeller!$A$31) -> 52 | C35: =COUNTIFS('Alle tillæg'!$H$4:$H$584,Tabeller!A35,'Alle tillæg'!$I$4:$I$584,"Godkendt",'Alle tillæg'!$B$4:$B$584,Tabeller!$A$31)/B35 -> 1 | D35: =COUNTIFS('Alle tillæg'!$H$4:$H$584,Tabeller!A35,'Alle tillæg'!$I$4:$I$584,"Afvist ",'Alle tillæg'!$B$4:$B$584,Tabeller!$A$31)/B35 -> 0 | E35: =SUMIFS('Alle tillæg'!$E$4:$E$584,'Alle tillæg'!$B$4:$B$584,Tabeller!$A$31,'Alle tillæg'!$H$4:$H$584,Tabeller!A35)+SUMIFS('Alle tillæg'!$F$4:$F$584,'Alle tillæg'!$B$4:$B$584,Tabeller!$A$31,'Alle tillæg'!$H$4:$H$584,Tabeller!A35) -> 8459242 | F35: =SUMIFS('Alle tillæg'!$G$4:$G$584,'Alle tillæg'!$B$4:$B$584,Tabeller!$A$31,'Alle tillæg'!$H$4:$H$584,Tabeller!A35) -> 637721
A36: §11 stk. 5 (medfinansiering) | B36: =COUNTIFS('Alle tillæg'!$H$4:$H$584,Tabeller!A36,'Alle tillæg'!$B$4:$B$584,Tabeller!$A$31) -> 0 | E36: =SUMIFS('Alle tillæg'!$E$4:$E$584,'Alle tillæg'!$B$4:$B$584,Tabeller!$A$31,'Alle tillæg'!$H$4:$H$584,Tabeller!A36)+SUMIFS('Alle tillæg'!$F$4:$F$584,'Alle tillæg'!$B$4:$B$584,Tabeller!$A$31,'Alle tillæg'!$H$4:$H$584,Tabeller!A36) -> 0 | F36: =SUMIFS('Alle tillæg'!$G$4:$G$584,'Alle tillæg'!$B$4:$B$584,Tabeller!$A$31,'Alle tillæg'!$H$4:$H$584,Tabeller!A36) -> 0
A37: §11, stk. 6 (sup. Investering) | B37: =COUNTIFS('Alle tillæg'!$H$4:$H$584,Tabeller!A37,'Alle tillæg'!$B$4:$B$584,Tabeller!$A$31) -> 0 | E37: =SUMIFS('Alle tillæg'!$E$4:$E$584,'Alle tillæg'!$B$4:$B$584,Tabeller!$A$31,'Alle tillæg'!$H$4:$H$584,Tabeller!A37)+SUMIFS('Alle tillæg'!$F$4:$F$584,'Alle tillæg'!$B$4:$B$584,Tabeller!$A$31,'Alle tillæg'!$H$4:$H$584,Tabeller!A37) -> 0 | F37: =SUMIFS('Alle tillæg'!$G$4:$G$584,'Alle tillæg'!$B$4:$B$584,Tabeller!$A$31,'Alle tillæg'!$H$4:$H$584,Tabeller!A37) -> 0
A38: §11, stk. 9 (vejbidrag) | B38: =COUNTIFS('Alle tillæg'!$H$4:$H$584,Tabeller!A38,'Alle tillæg'!$B$4:$B$584,Tabeller!$A$31) -> 0 | E38: =SUMIFS('Alle tillæg'!$E$4:$E$584,'Alle tillæg'!$B$4:$B$584,Tabeller!$A$31,'Alle tillæg'!$H$4:$H$584,Tabeller!A38)+SUMIFS('Alle tillæg'!$F$4:$F$584,'Alle tillæg'!$B$4:$B$584,Tabeller!$A$31,'Alle tillæg'!$H$4:$H$584,Tabeller!A38) -> 0 | F38: =SUMIFS('Alle tillæg'!$G$4:$G$584,'Alle tillæg'!$B$4:$B$584,Tabeller!$A$31,'Alle tillæg'!$H$4:$H$584,Tabeller!A38) -> 0
A39: §13, stk. 2 (periodevise) | B39: =COUNTIFS('Alle tillæg'!$H$4:$H$584,Tabeller!A39,'Alle tillæg'!$B$4:$B$584,Tabeller!$A$31) -> 7 | C39: =COUNTIFS('Alle tillæg'!$H$4:$H$584,Tabeller!A39,'Alle tillæg'!$I$4:$I$584,"Godkendt",'Alle tillæg'!$B$4:$B$584,Tabeller!$A$31)/B39 -> 0.2857142857 | D39: =COUNTIFS('Alle tillæg'!$H$4:$H$584,Tabeller!A39,'Alle tillæg'!$I$4:$I$584,"Afvist ",'Alle tillæg'!$B$4:$B$584,Tabeller!$A$31)/B39 -> 0.7142857143 | E39: =SUMIFS('Alle tillæg'!$E$4:$E$584,'Alle tillæg'!$B$4:$B$584,Tabeller!$A$31,'Alle tillæg'!$H$4:$H$584,Tabeller!A39)+SUMIFS('Alle tillæg'!$F$4:$F$584,'Alle tillæg'!$B$4:$B$584,Tabeller!$A$31,'Alle tillæg'!$H$4:$H$584,Tabeller!A39) -> 25757 | F39: =SUMIFS('Alle tillæg'!$G$4:$G$584,'Alle tillæg'!$B$4:$B$584,Tabeller!$A$31,'Alle tillæg'!$H$4:$H$584,Tabeller!A39) -> 772728
A40: §31, stk. 7 (vandindvinding) | B40: =COUNTIFS('Alle tillæg'!$H$4:$H$584,Tabeller!A40,'Alle tillæg'!$B$4:$B$584,Tabeller!$A$31) -> 4 | C40: =COUNTIFS('Alle tillæg'!$H$4:$H$584,Tabeller!A40,'Alle tillæg'!$I$4:$I$584,"Godkendt",'Alle tillæg'!$B$4:$B$584,Tabeller!$A$31)/B40 -> 0.75 | D40: =COUNTIFS('Alle tillæg'!$H$4:$H$584,Tabeller!A40,'Alle tillæg'!$I$4:$I$584,"Afvist ",'Alle tillæg'!$B$4:$B$584,Tabeller!$A$31)/B40 -> 0.25 | E40: =SUMIFS('Alle tillæg'!$E$4:$E$584,'Alle tillæg'!$B$4:$B$584,Tabeller!$A$31,'Alle tillæg'!$H$4:$H$584,Tabeller!A40)+SUMIFS('Alle tillæg'!$F$4:$F$584,'Alle tillæg'!$B$4:$B$584,Tabeller!$A$31,'Alle tillæg'!$H$4:$H$584,Tabeller!A40) -> 2151538 | F40: =SUMIFS('Alle tillæg'!$G$4:$G$584,'Alle tillæg'!$B$4:$B$584,Tabeller!$A$31,'Alle tillæg'!$H$4:$H$584,Tabeller!A40) -> 0
A41: § 14 (Justering af den økonomiske ramme) | B41: =COUNTIFS('Alle tillæg'!$H$4:$H$584,Tabeller!A41,'Alle tillæg'!$B$4:$B$584,Tabeller!$A$31) -> 2 | C41: =COUNTIFS('Alle tillæg'!$H$4:$H$584,Tabeller!A41,'Alle tillæg'!$I$4:$I$584,"Godkendt",'Alle tillæg'!$B$4:$B$584,Tabeller!$A$31)/B41 -> 0 | D41: =COUNTIFS('Alle tillæg'!$H$4:$H$584,Tabeller!A41,'Alle tillæg'!$I$4:$I$584,"Afvist ",'Alle tillæg'!$B$4:$B$584,Tabeller!$A$31)/B41 -> 1 | E41: =SUMIFS('Alle tillæg'!$E$4:$E$584,'Alle tillæg'!$B$4:$B$584,Tabeller!$A$31,'Alle tillæg'!$H$4:$H$584,Tabeller!A41)+SUMIFS('Alle tillæg'!$F$4:$F$584,'Alle tillæg'!$B$4:$B$584,Tabeller!$A$31,'Alle tillæg'!$H$4:$H$584,Tabeller!A41) -> 0 | F41: =SUMIFS('Alle tillæg'!$G$4:$G$584,'Alle tillæg'!$B$4:$B$584,Tabeller!$A$31,'Alle tillæg'!$H$4:$H$584,Tabeller!A41) -> 0
A42: § 18 stk. 4 | B42: =COUNTIFS('Alle tillæg'!$H$4:$H$584,Tabeller!A42,'Alle tillæg'!$B$4:$B$584,Tabeller!$A$31) -> 0 | E42: =SUMIFS('Alle tillæg'!$E$4:$E$584,'Alle tillæg'!$B$4:$B$584,Tabeller!$A$31,'Alle tillæg'!$H$4:$H$584,Tabeller!A42)+SUMIFS('Alle tillæg'!$F$4:$F$584,'Alle tillæg'!$B$4:$B$584,Tabeller!$A$31,'Alle tillæg'!$H$4:$H$584,Tabeller!A42) -> 0 | F42: =SUMIFS('Alle tillæg'!$G$4:$G$584,'Alle tillæg'!$B$4:$B$584,Tabeller!$A$31,'Alle tillæg'!$H$4:$H$584,Tabeller!A42) -> 0
E44: =SUM(E33:E42) -> 22688814 | F44: =SUM(F33:F42) -> 6939257

Sheet Ark1 (hidden)
A2: §11 Stk. 1 (mål)
A3: §11, Stk. 2 (ledningsomlægning)
A4: §11, stk. 4 (udvidelse)
A5: §11 stk. 5 (medfinansiering)
A6: §11, stk. 6 (sup. Investering)
A7: §11, stk. 9 (vejbidrag)
A8: §13, stk. 2 (periodevise)
A9: §31, stk. 7 (vandindvinding)
A10: § 14 (Justering af den økonomiske ramme)
A11: § 18 stk. 4
